Date,Supplier,Brief Description and Quantity,Cost Centre,A/C,Merchant Category,� Gross Amount,VAT Not Recovered,Dept
12-Apr-16,Lifesavers direct,Training update,LP01,130,Training,12.50,,One Leisure Huntingdon
14-Apr-16,B & Q,Maintenance,LP90,303,Building Maintenance,9.83,,One Leisure Huntingdon
21-Apr-16,sports direct,Sports equipment,LP02,524,Sports Equipment,52.39,,One Leisure Huntingdon
26-Apr-16,Argos,Sports equipment,LP90,524,Sports Equipment,44.91,,One Leisure Huntingdon
04-Apr-16,HMCS,NNDR summonses,FD05,729,Legal fees,72.00,,Local Taxation
04-Apr-16,HMCS,CTAX summonses,FC05,729,Legal fees,"1,410.00",,Local Taxation
08-Apr-16,HMCS,CTAX committal summonses,FC05,729,Legal fees,490.00,,Local Taxation
12-Apr-16,Premier Inn,Hotel accommodation,MU59,136,Training - other,228.00,,Local Taxation
12-Apr-16,Premier Inn,Hotel accommodation,MU59,136,Training - other,237.00,,Local Taxation
13-Apr-16,Inter Continental,Hotel accommodation - Crowne Plaza,CH23,137,Conferences,100.00,,Local Taxation
14-Apr-16,Premier Inn,Hotel accommodation,MU59,136,Training - other,-45.00,,Local Taxation
21-Apr-16,Wetherspoon,Hotel accommodation - Briar Rose,MU59,136,Training - other,65.00,,Local Taxation
26-Apr-16,Premier Inn,Hotel accommodation,HH01,818,BED & BREAKFAST PAYMENT,454.00,,Local Taxation
26-Apr-16,Premier Inn,Hotel accommodation,HH01,818,BED & BREAKFAST PAYMENT,482.00,,Local Taxation
27-Apr-16,Premier Inn,Hotel accommodation,HH01,818,BED & BREAKFAST PAYMENT,411.00,,Local Taxation
28-Apr-16,Premier Inn,Hotel accommodation,HH01,818,BED & BREAKFAST PAYMENT,379.00,,Local Taxation
28-Apr-16,Premier Inn,Hotel accommodation,HH01,818,BED & BREAKFAST PAYMENT,1.95,,Local Taxation
28-Apr-16,Premier Inn,Hotel accommodation,HH01,818,BED & BREAKFAST PAYMENT,116.00,,Local Taxation
29-Apr-16,Premier Inn,Hotel accommodation,HH01,818,BED & BREAKFAST PAYMENT,455.00,,Local Taxation
29-Apr-16,Premier Inn,Hotel accommodation,HH01,818,BED & BREAKFAST PAYMENT,1.95,,Local Taxation
29-Apr-16,Premier Inn,Hotel accommodation,HH01,818,BED & BREAKFAST PAYMENT,209.00,,Local Taxation
29-Apr-16,Premier Inn,Hotel accommodation,HH01,818,BED & BREAKFAST PAYMENT,1.95,,Local Taxation
15-Apr-16,Puma Hotels,Conference Accommodation,FC05,137,Conferences,234.00,,Local Taxation
04-Apr-16,Premier Inn Brampton,PERSONAL DETAILS REDACTED,HH01,818,BED & BREAKFAST PAYMENT,496.00,,Housing
04-Jun-16,Premier Inn Brampton,PERSONAL DETAILS REDACTED,HH01,818,BED & BREAKFAST PAYMENT,125.86,,Housing
05-Apr-16,T'Lodge Fenstanton,PERSONAL DETAILS REDACTED,HH01,818,BED & BREAKFAST PAYMENT,423.00,,Housing
05-Apr-16,T'Lodge Fenstanton,PERSONAL DETAILS REDACTED,HH01,818,BED & BREAKFAST PAYMENT,31.15,,Housing
05-Apr-16,T'Lodge Fenstanton,Fee,HH01,818,BED & BREAKFAST PAYMENT,2.00,,Housing
05-Apr-16,T'Lodge ,Refund,HH01,818,BED & BREAKFAST PAYMENT,-326.70,,Housing
06-Apr-16,T'Lodge Fenstanton,PERSONAL DETAILS REDACTED,HH01,818,BED & BREAKFAST PAYMENT,413.00,,Housing
06-Apr-16,T'Lodge Fenstanton,PERSONAL DETAILS REDACTED,HH01,818,BED & BREAKFAST PAYMENT,93.45,,Housing
06-Apr-16,T'Lodge Fenstanton,Fee,HH01,818,BED & BREAKFAST PAYMENT,2.00,,Housing
06-Apr-16,T'Lodge Fenstanton,PERSONAL DETAILS REDACTED,HH01,818,BED & BREAKFAST PAYMENT,413.00,,Housing
06-Apr-16,T'Lodge Fenstanton,Cancellation fee,HH01,818,BED & BREAKFAST PAYMENT,1.95,,Housing
06-Apr-16,T'Lodge Fenstanton,Fee,HH01,818,BED & BREAKFAST PAYMENT,2.00,,Housing
07-Apr-16,T'lodge Wyboston,PERSONAL DETAILS REDACTED,HH01,818,BED & BREAKFAST PAYMENT,414.00,,Housing
07-Apr-16,T'lodge Wyboston,Cancellation fee,HH01,818,BED & BREAKFAST PAYMENT,1.95,,Housing
07-Apr-16,T'lodge Wyboston,Fee,HH01,818,BED & BREAKFAST PAYMENT,2.00,,Housing
07-Apr-16,T'lodge Wyboston,PERSONAL DETAILS REDACTED,HH01,818,BED & BREAKFAST PAYMENT,96.00,,Housing
07-Apr-16,T'lodge Wyboston,Cancellation fee,HH01,818,BED & BREAKFAST PAYMENT,1.95,,Housing
07-Apr-16,T'lodge Wyboston,Fee,HH01,818,BED & BREAKFAST PAYMENT,2.00,,Housing
08-Apr-16,T'Lodge Fenstanton,PERSONAL DETAILS REDACTED,HH01,818,BED & BREAKFAST PAYMENT,404.00,,Housing
08-Apr-16,T'Lodge Fenstanton,Cancellation fee,HH01,818,BED & BREAKFAST PAYMENT,1.95,,Housing
08-Apr-16,T'Lodge Fenstanton,Fee,HH01,818,BED & BREAKFAST PAYMENT,2.00,,Housing
08-Apr-16,T'Lodge Fenstanton,PERSONAL DETAILS REDACTED,HH01,818,BED & BREAKFAST PAYMENT,-374.15,,Housing
11-Apr-16,Premier Inn Brampton,PERSONAL DETAILS REDACTED,HH01,818,BED & BREAKFAST PAYMENT,462.50,,Housing
11-Apr-16,Premier Inn Brampton,PERSONAL DETAILS REDACTED,HH01,818,BED & BREAKFAST PAYMENT,125.86,,Housing
11-Apr-16,Premier Inn Brampton,Fee,HH01,818,BED & BREAKFAST PAYMENT,2.00,,Housing
12-Apr-16,T'lodge Wyboston,PERSONAL DETAILS REDACTED,HH01,818,BED & BREAKFAST PAYMENT,430.00,,Housing
12-Apr-16,T'lodge Wyboston,PERSONAL DETAILS REDACTED,HH01,818,BED & BREAKFAST PAYMENT,31.15,,Housing
12-Apr-16,T'lodge Wyboston,Cancellation fee,HH01,818,BED & BREAKFAST PAYMENT,1.95,,Housing
12-Apr-16,T'lodge Wyboston,Fee,HH01,818,BED & BREAKFAST PAYMENT,2.00,,Housing
13-Apr-16,T'lodge Wyboston,PERSONAL DETAILS REDACTED,HH01,818,BED & BREAKFAST PAYMENT,418.00,,Housing
13-Apr-16,T'lodge Wyboston,PERSONAL DETAILS REDACTED,HH01,818,BED & BREAKFAST PAYMENT,62.30,,Housing
13-Apr-16,T'lodge Wyboston,Cancellation fee,HH01,818,BED & BREAKFAST PAYMENT,1.95,,Housing
13-Apr-16,T'lodge Wyboston,Fee,HH01,818,BED & BREAKFAST PAYMENT,2.00,,Housing
13-Apr-16,T'lodge Alwalton,PERSONAL DETAILS REDACTED,HH01,818,BED & BREAKFAST PAYMENT,421.00,,Housing
13-Apr-16,T'lodge Alwalton,Cancellation fee,HH01,818,BED & BREAKFAST PAYMENT,1.95,,Housing
13-Apr-16,T'lodge Alwalton,Fee,HH01,818,BED & BREAKFAST PAYMENT,2.00,,Housing
14-Apr-16,T'lodge Wyboston,PERSONAL DETAILS REDACTED,HH01,818,BED & BREAKFAST PAYMENT,455.00,,Housing
14-Apr-16,T'lodge Wyboston,Fee,HH01,818,BED & BREAKFAST PAYMENT,2.00,,Housing
14-Apr-16,T'lodge Swavesey,PERSONAL DETAILS REDACTED,HH01,818,BED & BREAKFAST PAYMENT,104.00,,Housing
14-Apr-16,T'lodge Swavesey,Fee,HH01,818,BED & BREAKFAST PAYMENT,2.00,,Housing
14-Apr-16,T'Lodge Fenstanton,PERSONAL DETAILS REDACTED,HH01,818,BED & BREAKFAST PAYMENT,458.00,,Housing
14-Apr-16,T'Lodge Fenstanton,Cancellation fee,HH01,818,BED & BREAKFAST PAYMENT,1.95,,Housing
14-Apr-16,T'Lodge Fenstanton,Fee,HH01,818,BED & BREAKFAST PAYMENT,2.00,,Housing
18-Apr-16,T'Lodge Wyboston,PERSONAL DETAILS REDACTED,HH01,818,BED & BREAKFAST PAYMENT,443.00,,Housing
18-Apr-16,T'Lodge Wyboston,PERSONAL DETAILS REDACTED,HH01,818,BED & BREAKFAST PAYMENT,31.15,,Housing
18-Apr-16,T'Lodge Wyboston,Cancellation insurance,HH01,818,BED & BREAKFAST PAYMENT,1.95,,Housing
18-Apr-16,T'Lodge Wyboston,Fee,HH01,818,BED & BREAKFAST PAYMENT,2.00,,Housing
18-Apr-16,T'Lodge Fenstanton,PERSONAL DETAILS REDACTED,HH01,818,BED & BREAKFAST PAYMENT,409.00,,Housing
18-Apr-16,T'Lodge Fenstanton,PERSONAL DETAILS REDACTED,HH01,818,BED & BREAKFAST PAYMENT,31.15,,Housing
18-Apr-16,T'Lodge Fenstanton,Cancellation insurance,HH01,818,BED & BREAKFAST PAYMENT,1.95,,Housing
18-Apr-16,T'Lodge Fenstanton,Fee,HH01,818,BED & BREAKFAST PAYMENT,2.00,,Housing
18-Apr-16,Premier Inn Brampton,PERSONAL DETAILS REDACTED,HH01,818,BED & BREAKFAST PAYMENT,479.00,,Housing
18-Apr-16,Premier Inn Brampton,PERSONAL DETAILS REDACTED,HH01,818,BED & BREAKFAST PAYMENT,125.86,,Housing
20-Apr-16,T'Lodge P'boro,PERSONAL DETAILS REDACTED,HH01,818,BED & BREAKFAST PAYMENT,394.00,,Housing
20-Apr-16,T'Lodge P'boro,Fee,HH01,818,BED & BREAKFAST PAYMENT,2.00,,Housing
20-Apr-16,T'Lodge P'boro,PERSONAL DETAILS REDACTED,HH01,818,BED & BREAKFAST PAYMENT,69.00,,Housing
20-Apr-16,T'Lodge P'boro,PERSONAL DETAILS REDACTED,HH01,818,BED & BREAKFAST PAYMENT,4.45,,Housing
20-Apr-16,T'Lodge P'boro,Fee,HH01,818,BED & BREAKFAST PAYMENT,2.00,,Housing
20-Apr-16,T'Lodge Fenstanton,PERSONAL DETAILS REDACTED,HH01,818,BED & BREAKFAST PAYMENT,412.00,,Housing
20-Apr-16,T'Lodge Fenstanton,PERSONAL DETAILS REDACTED,HH01,818,BED & BREAKFAST PAYMENT,62.30,,Housing
20-Apr-16,T'Lodge Fenstanton,Cancellation insurance,HH01,818,BED & BREAKFAST PAYMENT,1.95,,Housing
20-Apr-16,T'Lodge Fenstanton,Fee,HH01,818,BED & BREAKFAST PAYMENT,2.00,,Housing
20-Apr-16,T'Lodge Wyboston,PERSONAL DETAILS REDACTED,HH01,818,BED & BREAKFAST PAYMENT,80.00,,Housing
20-Apr-16,T'Lodge Wyboston,PERSONAL DETAILS REDACTED,HH01,818,BED & BREAKFAST PAYMENT,8.90,,Housing
20-Apr-16,T'Lodge Wyboston,Fee,HH01,818,BED & BREAKFAST PAYMENT,2.00,,Housing
21-Apr-16,T'Lodge Wyboston,PERSONAL DETAILS REDACTED,HH01,818,BED & BREAKFAST PAYMENT,437.00,,Housing
21-Apr-16,T'Lodge Wyboston,Cancellation insurance,HH01,818,BED & BREAKFAST PAYMENT,1.95,,Housing
21-Apr-16,T'Lodge Wyboston,Fee,HH01,818,BED & BREAKFAST PAYMENT,2.00,,Housing
21-Apr-16,T'Lodge Wyboston,PERSONAL DETAILS REDACTED,HH01,818,BED & BREAKFAST PAYMENT,437.00,,Housing
21-Apr-16,T'Lodge Wyboston,Cancellation insurance,HH01,818,BED & BREAKFAST PAYMENT,1.95,,Housing
21-Apr-16,T'Lodge Wyboston,Fee,HH01,818,BED & BREAKFAST PAYMENT,2.00,,Housing
21-Apr-16,T'Lodge Barton Mills,PERSONAL DETAILS REDACTED,HH01,818,BED & BREAKFAST PAYMENT,211.00,,Housing
21-Apr-16,T'Lodge Barton Mills,Cancellation insurance,HH01,818,BED & BREAKFAST PAYMENT,1.95,,Housing
21-Apr-16,T'Lodge Barton Mills,Fee,HH01,818,BED & BREAKFAST PAYMENT,2.00,,Housing
25-Apr-16,T'Lodge Wyboston,PERSONAL DETAILS REDACTED,HH01,818,BED & BREAKFAST PAYMENT,491.00,,Housing
25-Apr-16,T'Lodge Wyboston,Fee,HH01,818,BED & BREAKFAST PAYMENT,2.00,,Housing
25-Apr-16,T'Lodge Barton Mills,PERSONAL DETAILS REDACTED,HH01,818,BED & BREAKFAST PAYMENT,131.00,,Housing
25-Apr-16,T'Lodge Barton Mills,Fee,HH01,818,BED & BREAKFAST PAYMENT,2.00,,Housing
25-Apr-16,T'Lodge Fenstanton,PERSONAL DETAILS REDACTED,HH01,818,BED & BREAKFAST PAYMENT,445.00,,Housing
25-Apr-16,T'Lodge Fenstanton,Fee,HH01,818,BED & BREAKFAST PAYMENT,2.00,,Housing
06-Apr-16,BSM,Driving Lessons,EG06,136,Training - other,238.50,,Operations
30-Apr-16,Facebook,Facebook Advertising,LQ90,255,Advertising/Promoting Services,14.98,,One Leisure St Ives
30-Apr-16,Facebook,Facebook Advertising,LQ90,255,Advertising/Promoting Services,127.87,,One Leisure St Ives
06-Apr-16,DVLA,Vehicle Tax,MU98,609,VEHICLE LICENCE,232.50,,One Leisure St Ives
28-Apr-16,HMCTS,Parking fine,ER01,636,TRAVEL EXPENSES,30.00,,One Leisure St Ives
06-Apr-16,Gindartasia,Radio Ear Piece,LQ21,500,Equipment,6.90,,One Leisure St Ives
06-Apr-16,Survey Monkey,Marketing ,LQ40,255,Advertising/Promoting Services,21.67,,One Leisure St Ives
18-Apr-16,Amazon,Uniform,LQ21,163,Protective Clothing and Uniforms,38.75,,One Leisure St Ives
18-Apr-16,Amazon,Uniform,LQ21,163,Protective Clothing and Uniforms,39.94,,One Leisure St Ives
18-Apr-16,Amazon,Uniform,LQ21,163,Protective Clothing and Uniforms,27.85,,One Leisure St Ives
19-Apr-16,Amazon,Uniform,LQ21,163,Protective Clothing and Uniforms,4.22,,One Leisure St Ives
22-Apr-16,Tesco Clothi,Clothing,LQ21,163,Protective Clothing and Uniforms,45.95,,One Leisure St Ives
22-Apr-16,Trainanlge clo,Props for event,LQ21,500,Equipment,4.99,,One Leisure St Ives
29-Apr-16,Amazon,Ticket Rolls for Craft Fair,LQ21,500,Equipment,22.96,,One Leisure St Ives
29-Apr-16,Amazon,G Clamps for the AV boards,LQ21,500,Equipment,12.01,,One Leisure St Ives
29-Apr-16,Facebook,Event Marketing,LQ40,255,Advertising/Promoting Services,71.17,,One Leisure St Ives
02-May-16,Facebook,Event Marketing,LQ40,255,Advertising/Promoting Services,3.39,,One Leisure St Ives
10-May-16,Air Tech Equipment,Oil for compressor,LQ96,550,MATERIALS,44.85,,One Leisure St Ives
01-Apr-16,Pingdom,Performance Monitoring Annual Renewal,MD20,206,Software,21.00,,IMD
01-Apr-16,Microsoft,Azure Subscription,MD20,206,Software,202.38,,IMD
13-Apr-16,Symantec,Leisure Bookings Secure Site,MD20,206,Software,525.00,,IMD
20-Apr-16,Amazon,Micro USB,MD20,203,Other IT Hardware,5.40,,IMD
21-Apr-16,Dennis Publishing,PC Pro Annual Subcription,MD20,250,Books & Publications,49.99,,IMD
23-Apr-16,Microsoft,Azure Subscription,MD20,206,Software,2.87,,IMD
25-Apr-16,Amazon,Lumia Phone Covers,MD20,240,Telephone &Mobile PhoneCharges,19.95,,IMD
25-Apr-16,Amazon,Lumia Phone Covers,MD20,240,Telephone &Mobile PhoneCharges,3.98,,IMD
27-Apr-16,Github,Sofware Subscription,MD20,206,Software,35.37,,IMD
26-Apr-16,K Bins Ltd,Equipment for Elections,CE86,295,Other office expenses,166.75,,Corporate Office
25-May-16,Duport Associates,Company check,MU76,723,Enquiries,11.40,,Resources
25-May-16,Duport Associates,Company check,MU76,723,Enquiries,1.50,,Resources
25-May-16,Duport Associates,Company check,MU76,723,Enquiries,11.40,,Resources
25-May-16,Duport Associates,Company check,MU76,723,Enquiries,1.50,,Resources
25-May-16,A1 rent,Hire of Van,LP90,607,VEHICLE HIRE,320.00,,One Leisure Huntingdon
03-May-16,Travelodge,Homeless person accommodation,HH01,818,BED & BREAKFAST PAYMENT,411.00,,Local Taxation
04-May-16,Travelodge,Homeless person accommodation,HH01,818,BED & BREAKFAST PAYMENT,459.00,,Local Taxation
04-May-16,Travelodge,Homeless person accommodation,HH01,818,BED & BREAKFAST PAYMENT,1.95,,Local Taxation
04-May-16,Travelodge,Homeless person accommodation,HH01,818,BED & BREAKFAST PAYMENT,434.00,,Local Taxation
04-May-16,Travelodge,Homeless person accommodation,HH01,818,BED & BREAKFAST PAYMENT,1.95,,Local Taxation
04-May-16,Travelodge,Homeless person accommodation,HH01,818,BED & BREAKFAST PAYMENT,399.00,,Local Taxation
04-May-16,Travelodge,Homeless person accommodation,HH01,818,BED & BREAKFAST PAYMENT,1.95,,Local Taxation
06-May-16,Wetherspoon,Hotel accommodation,MU59,136,Training - other,65.00,,Local Taxation
11-May-16,Travelodge,Homeless person accommodation,HH01,818,BED & BREAKFAST PAYMENT,445.00,,Local Taxation
11-May-16,Travelodge,Homeless person accommodation,HH01,818,BED & BREAKFAST PAYMENT,469.00,,Local Taxation
11-May-16,Travelodge,Homeless person accommodation,HH01,818,BED & BREAKFAST PAYMENT,1.95,,Local Taxation
12-May-16,Travelodge,Homeless person accommodation,HH01,818,BED & BREAKFAST PAYMENT,562.50,,Local Taxation
12-May-16,Travelodge,Reservation Refund,HH01,818,BED & BREAKFAST PAYMENT,-82.00,,Local Taxation
18-May-16,Travelodge,Reservation Refund,HH01,818,BED & BREAKFAST PAYMENT,-122.00,,Local Taxation
12-May-16,T'Lodge Swavesey,PERSONAL DETAILS REDACTED,HH01,818,BED & BREAKFAST PAYMENT,-396.15,,Housing
09-May-16,T'Lodge Fenstanton,PERSONAL DETAILS REDACTED,HH01,818,BED & BREAKFAST PAYMENT,385.00,,Housing
09-May-16,T'Lodge Fenstanton,Fee,HH01,818,BED & BREAKFAST PAYMENT,2.00,,Housing
10-May-16,T'Lodge Fenstanton,PERSONAL DETAILS REDACTED,HH01,818,BED & BREAKFAST PAYMENT,63.00,,Housing
12-May-16,T'Lodge Wyboston,PERSONAL DETAILS REDACTED,HH01,818,BED & BREAKFAST PAYMENT,80.00,,Housing
10-May-16,BSM,Driving lessons,EG06,130,Training,265.00,,Operations
04-May-16,Leisure Media,One Leisure Recruitment Advertising,LL01,120,Recruitment costs,356.40,,One Leisure St Ives
04-May-16,Leisure Media,One Leisure Recruitment Advertising,LL01,120,Recruitment costs,356.40,,One Leisure St Ives
08-May-16,Facebook,3C ICT Recruitment Advertising,MD20,120,Recruitment costs,170.39,,One Leisure St Ives
08-May-16,Facebook,3C ICT Recruitment Advertising,MD20,120,Recruitment costs,29.76,,One Leisure St Ives
13-May-16,Facebook,Facebook Advertising (April),LQ90,255,Advertising/Promoting Services,617.56,,One Leisure St Ives
19-May-16,Findel,Tennis Balls - Active Lifestyles,LB47,524,Sports Equipment,61.18,,One Leisure St Ives
23-May-16,Amazon,Canoeing Book - Active Lifestyles,LB47,524,Sports Equipment,13.95,,One Leisure St Ives
21-May-16,Surveymonkey,Annual Subscription,LL01,255,Advertising/Promoting Services,299.00,,One Leisure St Ives
31-May-16,Facebook,Facebook Advertising (May),LQ90,255,Advertising/Promoting Services,153.19,,One Leisure St Ives
31-May-16,Facebook,Facebook Advertising (May),LQ90,255,Advertising/Promoting Services,21.81,,One Leisure St Ives
31-May-16,Facebook,Facebook Advertising (May),LQ90,255,Advertising/Promoting Services,2.13,,One Leisure St Ives
31-May-16,Facebook,3C ICT Recruitment Advertising,MD20,120,Recruitment costs,77.55,,One Leisure St Ives
31-May-16,Facebook,3C ICT Recruitment Advertising,MD20,120,Recruitment costs,22.30,,One Leisure St Ives
09-May-16,DVLA,Vehicle Tax,EG06,609,VEHICLE LICENCE,232.50,,Operations
09-May-16,DVLA,Vehicle Tax,EG06,609,VEHICLE LICENCE,232.50,,Operations
09-May-16,DVLA,Vehicle Tax,ES01,609,VEHICLE LICENCE,232.50,,Operations
09-May-16,DVLA,Vehicle Tax,ES01,609,VEHICLE LICENCE,232.50,,Operations
09-May-16,DVLA,Vehicle Tax,MU98,609,VEHICLE LICENCE,142.50,,Operations
09-May-16,DVLA,Vehicle Tax,EG06,609,VEHICLE LICENCE,232.50,,Operations
09-May-16,DVLA,Vehicle Tax,EG06,609,VEHICLE LICENCE,232.50,,Operations
09-May-16,DVLA,Vehicle Tax,EG06,609,VEHICLE LICENCE,232.50,,Operations
31-May-16,FTA,FC40 Vehicle check sheets,MU95,500,Equipment,15.90,,Operations
31-May-16,BSM,Driving lessons,EG06,130,Training,26.50,,Operations
06-May-16,Amazon,Jump Ropes Gym,LQ02,500,Equipment,23.87,,One Leisure St Ives
06-May-16,Survey Monkey,Marketing,LQ40,255,Advertising/Promoting Services,21.67,,One Leisure St Ives
09-May-16,Amazon,Skipping Rope Gym,LQ02,500,Equipment,12.93,,One Leisure St Ives
18-May-16,Centreol Source,Rope Barriers,LQ21,500,Equipment,319.20,,One Leisure St Ives
20-May-16,UK Business,Event dec,LQ21,550,MATERIALS,11.55,,One Leisure St Ives
01-Jun-16,Facebook,Marketing,LQ40,255,Advertising/Promoting Services,58.78,,One Leisure St Ives
02-Jun-16,Amazon,Wall Planner,LQ21,550,MATERIALS,4.39,,One Leisure St Ives
03-Jun-16,Amazon,Tape measure,LQ21,550,MATERIALS,10.94,,One Leisure St Ives
06-May-16,Cater-Kwik,bar tray for glass washer,LK20,500,Equipment,27.59,,One Leisure St Ives
06-May-16,Nisbets,bar fridge,LK20,500,Equipment,431.98,,One Leisure St Ives
19-May-16,Bakeross,creche materials,LQ91,550,MATERIALS,16.22,,One Leisure St Ives
27-May-16,Lifesavers direct,NPLQ folders,LQ91,550,MATERIALS,487.00,,One Leisure St Ives
03-Jun-16,woodford recycling,Skip,LK90,763,WASTE DISPOSAL,354.00,,One Leisure St Ives
03-May-16,Amazon,Lumia Phone cases,MD20,240,Telephone &Mobile PhoneCharges,8.70,,IMD
03-May-16,Premier Inn,PERSONAL DETAILS REDACTED,MD20,130,Training,584.94,,IMD
04-May-16,TNT,Return Loan Microsoft Pro 4,MD20,203,Other IT Hardware,11.40,,IMD
13-May-16,Bitrix,Web Project Management tool,MD20,206,Software,"1,309.96",,IMD
13-May-16,1 & 1,Domain name Subscription,MD20,206,Software,9.58,,IMD
16-May-16,Boilerhouse,Conference,MD20,137,Conferences,168.00,,IMD
16-May-16,Boilerhouse,Conference,MD20,137,Conferences,168.00,,IMD
16-May-16,Boilerhouse,Conference,MD20,137,Conferences,168.00,,IMD
17-May-16,Amazon,Bury Universal phone cradle,MD20,240,Telephone &Mobile PhoneCharges,83.96,,IMD
16-May-16,Microsoft,Microsoft Azure,MD20,206,Software,228.81,,IMD
19-May-16,Amazon,Training SQL Books,MD20,130,Training,95.52,,IMD
22-May-16,Microsoft,My SQL Database,MD20,206,Software,2.87,,IMD
27-May-16,GitHub,Software Subscription,MD20,206,Software,8.80,,IMD
28-May-16,Amazon,Killer Web content book,MD20,130,Training,19.99,,IMD
12-May-16,University of Birmingham,Course - Scrutiny in Challenging Times,MH07,130,Training,195.00,,Corporate Office
05-May-16,Natwest,Courier Card Fee,HH01,818,BED & BREAKFAST PAYMENT,25.00,,Housing
11-May-16,T'Lodge Alwalton,PERSONAL DETAILS REDACTED,HH01,818,BED & BREAKFAST PAYMENT,423.00,,Housing
11-May-16,T'Lodge Alwalton,Fee,HH01,818,BED & BREAKFAST PAYMENT,2.00,,Housing
12-May-16,T'Lodge Wyboston,PERSONAL DETAILS REDACTED,HH01,818,BED & BREAKFAST PAYMENT,444.00,,Housing
12-May-16,T'Lodge Wyboston,Fee,HH01,818,BED & BREAKFAST PAYMENT,2.00,,Housing
12-May-16,T'Lodge Fenstanton,PERSONAL DETAILS REDACTED,HH01,818,BED & BREAKFAST PAYMENT,451.00,,Housing
12-May-16,T'Lodge Fenstanton,Fee,HH01,818,BED & BREAKFAST PAYMENT,2.00,,Housing
12-May-16,T'Lodge Fenstanton,PERSONAL DETAILS REDACTED,HH01,818,BED & BREAKFAST PAYMENT,-451.00,,Housing
13-May-16,T'Lodge Wyboston,PERSONAL DETAILS REDACTED,HH01,818,BED & BREAKFAST PAYMENT,156.00,,Housing
13-May-16,T'Lodge Wyboston,Fee,HH01,818,BED & BREAKFAST PAYMENT,2.00,,Housing
16-May-16,T'Lodge Fenstanton,PERSONAL DETAILS REDACTED,HH01,818,BED & BREAKFAST PAYMENT,448.00,,Housing
16-May-16,T'Lodge Fenstanton,Fee,HH01,818,BED & BREAKFAST PAYMENT,2.00,,Housing
16-May-16,T'Lodge Wyboston,PERSONAL DETAILS REDACTED,HH01,818,BED & BREAKFAST PAYMENT,73.00,,Housing
16-May-16,T'Lodge Wyboston,Fee,HH01,818,BED & BREAKFAST PAYMENT,2.00,,Housing
16-May-16,T'Lodge Fenstanton,PERSONAL DETAILS REDACTED,HH01,818,BED & BREAKFAST PAYMENT,55.00,,Housing
16-May-16,T'Lodge Fenstanton,Fee,HH01,818,BED & BREAKFAST PAYMENT,2.00,,Housing
16-May-16,T'Lodge Fenstanton,PERSONAL DETAILS REDACTED,HH01,818,BED & BREAKFAST PAYMENT,451.00,,Housing
16-May-16,T'Lodge Fenstanton,Fee,HH01,818,BED & BREAKFAST PAYMENT,2.50,,Housing
16-May-16,T'Lodge Fenstanton,PERSONAL DETAILS REDACTED,HH01,818,BED & BREAKFAST PAYMENT,-55.00,,Housing
17-May-16,T'Lodge Wyboston,PERSONAL DETAILS REDACTED,HH01,818,BED & BREAKFAST PAYMENT,69.00,,Housing
17-May-16,T'Lodge Wyboston,Fee,HH01,818,BED & BREAKFAST PAYMENT,2.00,,Housing
17-May-16,T'Lodge Fenstanton,PERSONAL DETAILS REDACTED,HH01,818,BED & BREAKFAST PAYMENT,473.00,,Housing
17-May-16,T'Lodge Fenstanton,Fee,HH01,818,BED & BREAKFAST PAYMENT,2.00,,Housing
18-May-16,T'Lodge Alwalton,PERSONAL DETAILS REDACTED,HH01,818,BED & BREAKFAST PAYMENT,102.00,,Housing
18-May-16,T'Lodge Alwalton,Fee,HH01,818,BED & BREAKFAST PAYMENT,2.00,,Housing
18-May-16,T'Lodge Wyboston,PERSONAL DETAILS REDACTED,HH01,818,BED & BREAKFAST PAYMENT,428.00,,Housing
18-May-16,T'Lodge Wyboston,Fee,HH01,818,BED & BREAKFAST PAYMENT,2.00,,Housing
19-May-16,T'Lodge P'boro,PERSONAL DETAILS REDACTED,HH01,818,BED & BREAKFAST PAYMENT,252.00,,Housing
19-May-16,T'Lodge P'boro,Fee,HH01,818,BED & BREAKFAST PAYMENT,2.00,,Housing
23-May-16,T'Lodge P'boro,PERSONAL DETAILS REDACTED,HH01,818,BED & BREAKFAST PAYMENT,474.00,,Housing
23-May-16,T'Lodge P'boro,Fee,HH01,818,BED & BREAKFAST PAYMENT,2.00,,Housing
23-May-16,T'Lodge P'boro,PERSONAL DETAILS REDACTED,HH01,818,BED & BREAKFAST PAYMENT,47.00,,Housing
23-May-16,T'Lodge P'boro,Fee,HH01,818,BED & BREAKFAST PAYMENT,2.00,,Housing
23-May-16,T'Lodge Fenstanton,PERSONAL DETAILS REDACTED,HH01,818,BED & BREAKFAST PAYMENT,470.00,,Housing
23-May-16,T'Lodge Fenstanton,Fee,HH01,818,BED & BREAKFAST PAYMENT,2.00,,Housing
23-May-16,T'Lodge Fenstanton,PERSONAL DETAILS REDACTED,HH01,818,BED & BREAKFAST PAYMENT,470.00,,Housing
23-May-16,T'Lodge Fenstanton,Fee,HH01,818,BED & BREAKFAST PAYMENT,2.00,,Housing
23-May-16,T'Lodge Fenstanton,PERSONAL DETAILS REDACTED,HH01,818,BED & BREAKFAST PAYMENT,55.00,,Housing
23-May-16,T'Lodge Fenstanton,Fee,HH01,818,BED & BREAKFAST PAYMENT,2.00,,Housing
23-May-16,T'Lodge Fenstanton,PERSONAL DETAILS REDACTED,HH01,818,BED & BREAKFAST PAYMENT,55.00,,Housing
23-May-16,T'Lodge Fenstanton,Fee,HH01,818,BED & BREAKFAST PAYMENT,2.00,,Housing
24-May-16,T'Lodge Fenstanton,PERSONAL DETAILS REDACTED,HH01,818,BED & BREAKFAST PAYMENT,96.00,,Housing
24-May-16,T'Lodge Fenstanton,Fee,HH01,818,BED & BREAKFAST PAYMENT,2.00,,Housing
24-May-16,T'Lodge Swavesey,PERSONAL DETAILS REDACTED,HH01,818,BED & BREAKFAST PAYMENT,449.00,,Housing
24-May-16,T'Lodge Swavesey,Fee,HH01,818,BED & BREAKFAST PAYMENT,2.00,,Housing
26-May-16,T'Lodge Alwalton,PERSONAL DETAILS REDACTED,HH01,818,BED & BREAKFAST PAYMENT,486.00,,Housing
26-May-16,T'Lodge Alwalton,Fee,HH01,818,BED & BREAKFAST PAYMENT,2.00,,Housing
26-May-16,T'Lodge Swavesey,PERSONAL DETAILS REDACTED,HH01,818,BED & BREAKFAST PAYMENT,350.00,,Housing
26-May-16,T'Lodge Swavesey,Fee,HH01,818,BED & BREAKFAST PAYMENT,2.00,,Housing
31-May-16,T'Lodge Fenstanton,PERSONAL DETAILS REDACTED,HH01,818,BED & BREAKFAST PAYMENT,475.00,,Housing
31-May-16,T'Lodge Fenstanton,Fee,HH01,818,BED & BREAKFAST PAYMENT,2.00,,Housing
31-May-16,T'Lodge Swavesey,PERSONAL DETAILS REDACTED,HH01,818,BED & BREAKFAST PAYMENT,431.00,,Housing
31-May-16,T'Lodge Swavesey,Fee,HH01,818,BED & BREAKFAST PAYMENT,2.00,,Housing
31-May-16,T'Lodge Fenstanton,PERSONAL DETAILS REDACTED,HH01,818,BED & BREAKFAST PAYMENT,159.00,,Housing
31-May-16,T'Lodge Fenstanton,Fee,HH01,818,BED & BREAKFAST PAYMENT,2.00,,Housing
31-May-16,T'Lodge Alwalton,PERSONAL DETAILS REDACTED,HH01,818,BED & BREAKFAST PAYMENT,401.00,,Housing
31-May-16,T'Lodge Alwalton,Fee,HH01,818,BED & BREAKFAST PAYMENT,2.00,,Housing
31-May-16,T'Lodge Swavesey,PERSONAL DETAILS REDACTED,HH01,818,BED & BREAKFAST PAYMENT,417.00,,Housing
31-May-16,T'Lodge Swavesey,Fee,HH01,818,BED & BREAKFAST PAYMENT,2.00,,Housing
31-May-16,T'Lodge Swavesey,PERSONAL DETAILS REDACTED,HH01,818,BED & BREAKFAST PAYMENT,470.00,,Housing
31-May-16,T'Lodge Swavesey,Fee,HH01,818,BED & BREAKFAST PAYMENT,2.00,,Housing
01-Jun-16,T'Lodge P'boro,PERSONAL DETAILS REDACTED,HH01,818,BED & BREAKFAST PAYMENT,453.00,,Housing
01-Jun-16,T'Lodge P'boro,Fee,HH01,818,BED & BREAKFAST PAYMENT,2.00,,Housing
02-Jun-16,T'Lodge Swavesey,PERSONAL DETAILS REDACTED,HH01,818,BED & BREAKFAST PAYMENT,419.00,,Housing
02-Jun-16,T'Lodge Swavesey,Fee,HH01,818,BED & BREAKFAST PAYMENT,2.00,,Housing
02-Jun-16,T'Lodge Eye Green,PERSONAL DETAILS REDACTED,HH01,818,BED & BREAKFAST PAYMENT,200.00,,Housing
02-Jun-16,T'Lodge Eye Green,Fee,HH01,818,BED & BREAKFAST PAYMENT,2.00,,Housing
02-Jun-16,T'Lodge P'boro,PERSONAL DETAILS REDACTED,HH01,818,BED & BREAKFAST PAYMENT,434.00,,Housing
02-Jun-16,T'Lodge P'boro,Fee,HH01,818,BED & BREAKFAST PAYMENT,2.00,,Housing
02-Jun-16,T'Lodge Swavesey,PERSONAL DETAILS REDACTED,HH01,818,BED & BREAKFAST PAYMENT,-419.00,,Housing
06-Jun-16,Shell garage ,Diesel for van hire,LP90,619,Vehicle Maintenance External,29.23,,One Leisure Huntingdon
09-Jun-16,Trainline,Train ticket to Hitchin for a course,LP90,607,VEHICLE HIRE,13.11,,One Leisure Huntingdon
10-Jun-16,TSGN,Train ticket to huntingdon,LP90,607,VEHICLE HIRE,10.30,,One Leisure Huntingdon
14-Jul-16,Enterprise,Van Hire,LP90,607,VEHICLE HIRE,34.64,,One Leisure Huntingdon
16-Jun-16,Enterprise,Van hire insurance excess,LP90,607,VEHICLE HIRE,24.98,,One Leisure Huntingdon
17-Jun-16,Shell garage ,Diesel for van hire,LP90,619,Vehicle Maintenance External,13.05,,One Leisure Huntingdon
22-Jun-16,wicks,Maintenance items,LP90,303,Building Maintenance,19.95,,One Leisure Huntingdon
23-Jun-16,Greenham trading,Fitness equipment,LP02,524,Sports Equipment,30.46,,One Leisure Huntingdon
29-Jun-16,AO retail,Fridge,LP90,500,Equipment,129.00,,One Leisure Huntingdon
08-Jun-16,HMCTS,Council Tax Committal Application,FC05,729,Legal fees,245.00,,Local Taxation
08-Jun-16,HMCTS,Non Domestic Rates Committal Application,FD05,729,Legal fees,245.00,,Local Taxation
13-Jun-16,HMCTS,Non Domestic Rates Liability Application,FD05,729,Legal fees,222.00,,Local Taxation
13-Jun-16,HMCTS,Council Tax Liability Application,FC05,729,Legal fees,"4,158.00",,Local Taxation
20-Jun-16,Versapak,Emergency stationery for Elections Team,CE92,225,Stationery,196.60,,Local Taxation
07-Jun-16,T'Lodge Swavesey,PERSONAL DETAILS REDACTED,HH01,818,BED & BREAKFAST PAYMENT,515.00,,Housing
07-Jun-16,T'Lodge Swavesey,Fee,HH01,818,BED & BREAKFAST PAYMENT,2.00,,Housing
07-Jun-16,T'Lodge Swavesey,PERSONAL DETAILS REDACTED,HH01,818,BED & BREAKFAST PAYMENT,515.00,,Housing
08-Jun-16,T'Lodge Swavesey,PERSONAL DETAILS REDACTED,HH01,818,BED & BREAKFAST PAYMENT,507.00,,Housing
20-Jun-16,T'Lodge P'boro Central,PERSONAL DETAILS REDACTED,HH01,818,BED & BREAKFAST PAYMENT,53.00,,Housing
20-Jun-16,T'Lodge P'boro Central,Fee,HH01,818,BED & BREAKFAST PAYMENT,2.00,,Housing
20-Jun-16,T'Lodge Alwalton,PERSONAL DETAILS REDACTED,HH01,818,BED & BREAKFAST PAYMENT,187.00,,Housing
20-Jun-16,T'Lodge Alwalton,Fee,HH01,818,BED & BREAKFAST PAYMENT,2.00,,Housing
20-Jun-16,Premier Inn Brampton,PERSONAL DETAILS REDACTED,HH01,818,BED & BREAKFAST PAYMENT,480.00,,Housing
20-Jun-16,Premier Inn Brampton,Fee,HH01,818,BED & BREAKFAST PAYMENT,2.00,,Housing
21-Jun-16,T'Lodge Alwalton,PERSONAL DETAILS REDACTED,HH01,818,BED & BREAKFAST PAYMENT,55.00,,Housing
21-Jun-16,T'Lodge Alwalton,Fee,HH01,818,BED & BREAKFAST PAYMENT,2.00,,Housing
22-Jun-16,T'Lodge Wyboston,PERSONAL DETAILS REDACTED,HH01,818,BED & BREAKFAST PAYMENT,446.00,,Housing
22-Jun-16,T'Lodge Wyboston,Fee,HH01,818,BED & BREAKFAST PAYMENT,2.00,,Housing
24-Jun-16,T'Lodge Alwalton,PERSONAL DETAILS REDACTED,HH01,818,BED & BREAKFAST PAYMENT,420.00,,Housing
24-Jun-16,T'Lodge Alwalton,Fee,HH01,818,BED & BREAKFAST PAYMENT,2.00,,Housing
24-Jun-16,T'Lodge Wyboston,PERSONAL DETAILS REDACTED,HH01,818,BED & BREAKFAST PAYMENT,482.00,,Housing
24-Jun-16,T'Lodge Wyboston,Fee,HH01,818,BED & BREAKFAST PAYMENT,2.00,,Housing
24-Jun-16,T'Lodge Alwalton,PERSONAL DETAILS REDACTED,HH01,818,BED & BREAKFAST PAYMENT,503.00,,Housing
24-Jun-16,T'Lodge Alwalton,Fee,HH01,818,BED & BREAKFAST PAYMENT,2.00,,Housing
15-Jun-16,The Mammoth Retail Group,The Mammoth Retail Group,CH24,500,Equipment,59.93,,Operations
06-Jun-16,Go Outdoors,Go Outdoors,LP90,500,Equipment,20.00,,One Leisure St Ives
27-Jun-16,Sainsburys,Sainsburys,LP90,615,DIESEL,81.50,,One Leisure St Ives
01-Jul-16,Sainsburys,Sainsburys,LP90,615,DIESEL,63.03,,One Leisure St Ives
01-Jul-16,Facebook,Facebook,LP90,255,Advertising/Promoting Services,328.04,,One Leisure St Ives
01-Jul-16,Facebook,Facebook,LP90,255,Advertising/Promoting Services,75.01,,One Leisure St Ives
10-Jun-16,DVLA,Vehicle Tax,ER01,609,VEHICLE LICENCE,652.50,,Operations
10-Jun-16,DVLA,Vehicle Tax,ER01,609,VEHICLE LICENCE,652.50,,Operations
10-Jun-16,DVLA,Vehicle Tax,ER01,609,VEHICLE LICENCE,232.50,,Operations
10-Jun-16,DVLA,Vehicle Tax,ES01,609,VEHICLE LICENCE,232.50,,Operations
10-Jun-16,DVLA,Vehicle Tax,ES01,609,VEHICLE LICENCE,232.50,,Operations
10-Jun-16,DVLA,Vehicle Tax,ES01,609,VEHICLE LICENCE,232.50,,Operations
03-Jun-16,Staples,Tickets,LQ40,255,Advertising/Promoting Services,242.38,,One Leisure St Ives
04-Jun-16,SurveyMonkey,Marketing,LQ40,255,Advertising/Promoting Services,21.67,,One Leisure St Ives
07-Jun-16,DHL,Postage for PF of Cyclone leaflets,LQ90,231,Postage,21.94,,One Leisure St Ives
14-Jun-16,Amazon,Wall Planner,LQ21,500,Equipment,3.99,,One Leisure St Ives
16-Jun-16,Clubkinh,Bingo Books,LQ21,500,Equipment,115.60,,One Leisure St Ives
17-Jun-16,Ping Feng,Xmas Party Decs,LQ21,500,Equipment,7.98,,One Leisure St Ives
17-Jun-16,Choose Your F,Xmas Party Decs,LQ21,500,Equipment,8.98,,One Leisure St Ives
17-Jun-16,Ryman Ltd,Xmas Party Decs,LQ21,500,Equipment,19.98,,One Leisure St Ives
17-Jun-16,Hongkong,Xmas Party Decs,LQ21,500,Equipment,14.62,,One Leisure St Ives
17-Jun-16,Librastudio,Xmas Party Decs,LQ21,500,Equipment,30.60,,One Leisure St Ives
17-Jun-16,Followtrned,Xmas Party Decs,LQ21,500,Equipment,22.32,,One Leisure St Ives
27-Jun-16,Amazon,Staff Ties,LQ27,163,Protective Clothing and Uniforms,13.23,,One Leisure St Ives
30-Jun-16,Facebook,Marketing,LQ40,255,Advertising/Promoting Services,7.71,,One Leisure St Ives
04-Jun-16,Microsoft,Azure Subscription,MD20,206,Software,174.72,,IMD
13-Jun-16,1 & 1 ,Domain Name Subscription,MD20,206,Software,11.99,,IMD
14-Jun-16,Amazon,Samung Galaxy A3 Case,MD20,240,Telephone &Mobile PhoneCharges,2.89,,IMD
14-Jun-16,Amazon,Lumia 640 Case,MD20,240,Telephone &Mobile PhoneCharges,3.96,,IMD
17-Jun-16,Jobserve,5 Job Credits Advertisement,MD20,100,Hired Staff,630.00,,IMD
22-Jun-16,Microsoft,MySQL Database Subcription,MD20,206,Software,2.87,,IMD
27-Jun-16,GitHub,Software Subscription,MD20,206,Software,19.58,,IMD
30-Jun-16,Travelodge,PERSONAL DETAILS REDACTED,MD20,130,Training,549.60,,IMD
14-Jun-16,Euro Loos,Evet toilet required for Poling Station,CE92,500,Equipment,198.00,,Corporate Office
13-Jun-16,Tesco,Petrol for Tractor,LN29,614,PETROL,12.53,,One Leisure St Neots
24-Jun-16,1&1 Internet Ltd,Domain name Subscription,MU59,255,Advertising/Promoting Services,23.97,,IMD
24-Jun-16,1&1 Internet Ltd,Domain name Subscription,LQ40,255,Advertising/Promoting Services,36.13,,IMD
24-Jun-16,EBUYER UK LTD,2 x Xenta USB 2.0 to Ethernet Adapter,MD20,203,Other IT Hardware,12.90,,IMD
25-Jun-16,SSL STORE,Lync Services,MD20,206,Software,81.74,,IMD
28-Jun-16,Travelodge,PERSONAL DETAILS REDACTED,MD20,130,Training,124.90,,IMD
28-Jun-16,Travelodge,PERSONAL DETAILS REDACTED,MD20,130,Training,115.90,,IMD
28-Jun-16,Amazon,Mobile case for Microsoft Lumia 640,MD20,240,Telephone &Mobile PhoneCharges,9.45,,IMD
30-Jun-16,Amazon,Delux Wireless Vertical Mouse,MD20,203,Other IT Hardware,19.99,,IMD
03-Jun-16,T'Lodge Fenstanton,PERSONAL DETAILS REDACTED,HH01,818,BED & BREAKFAST PAYMENT,465.00,,Housing
03-Jun-16,T'Lodge Fenstanton,Fee,HH01,818,BED & BREAKFAST PAYMENT,2.00,,Housing
03-Jun-16,T'Lodge Wyboston,PERSONAL DETAILS REDACTED,HH01,818,BED & BREAKFAST PAYMENT,496.00,,Housing
03-Jun-16,T'Lodge Wyboston,Fee,HH01,818,BED & BREAKFAST PAYMENT,2.00,,Housing
03-Jun-16,T'Lodge Wyboston,PERSONAL DETAILS REDACTED,HH01,818,BED & BREAKFAST PAYMENT,494.00,,Housing
03-Jun-16,T'Lodge Wyboston,Fee,HH01,818,BED & BREAKFAST PAYMENT,2.00,,Housing
03-Jun-16,Premier Inn H'Don,PERSONAL DETAILS REDACTED,HH01,818,BED & BREAKFAST PAYMENT,202.00,,Housing
06-Jun-16,T'Lodge Alwalton,PERSONAL DETAILS REDACTED,HH01,818,BED & BREAKFAST PAYMENT,398.00,,Housing
06-Jun-16,T'Lodge Alwalton,Fee,HH01,818,BED & BREAKFAST PAYMENT,2.00,,Housing
06-Jun-16,T'Lodge Alwalton,PERSONAL DETAILS REDACTED,HH01,818,BED & BREAKFAST PAYMENT,462.00,,Housing
06-Jun-16,T'Lodge Alwalton,Fee,HH01,818,BED & BREAKFAST PAYMENT,2.00,,Housing
06-Jun-16,T'Lodge Alwalton,Refund,HH01,818,BED & BREAKFAST PAYMENT,-352.00,,Housing
06-Jun-16,Premier Inn H'Don,PERSONAL DETAILS REDACTED,HH01,818,BED & BREAKFAST PAYMENT,336.00,,Housing
07-Jun-16,T'Lodge Fenstanton,PERSONAL DETAILS REDACTED,HH01,818,BED & BREAKFAST PAYMENT,479.00,,Housing
07-Jun-16,T'Lodge Fenstanton,Fee,HH01,818,BED & BREAKFAST PAYMENT,2.00,,Housing
07-Jun-16,T'Lodge Fenstanton,PERSONAL DETAILS REDACTED,HH01,818,BED & BREAKFAST PAYMENT,479.00,,Housing
07-Jun-16,T'Lodge Fenstanton,Fee,HH01,818,BED & BREAKFAST PAYMENT,2.00,,Housing
07-Jun-16,T'Lodge P'boro,PERSONAL DETAILS REDACTED,HH01,818,BED & BREAKFAST PAYMENT,254.00,,Housing
07-Jun-16,T'Lodge P'boro,Fee,HH01,818,BED & BREAKFAST PAYMENT,2.00,,Housing
08-Jun-16,T'Lodge Wyboston,PERSONAL DETAILS REDACTED,HH01,818,BED & BREAKFAST PAYMENT,443.00,,Housing
08-Jun-16,T'Lodge Wyboston,Fee,HH01,818,BED & BREAKFAST PAYMENT,2.00,,Housing
10-Jun-16,T'Lodge P'boro,PERSONAL DETAILS REDACTED,HH01,818,BED & BREAKFAST PAYMENT,497.00,,Housing
10-Jun-16,T'Lodge P'boro,Fee,HH01,818,BED & BREAKFAST PAYMENT,2.00,,Housing
10-Jun-16,T'Lodge Fenstanton,PERSONAL DETAILS REDACTED,HH01,818,BED & BREAKFAST PAYMENT,459.00,,Housing
10-Jun-16,T'Lodge Fenstanton,Fee,HH01,818,BED & BREAKFAST PAYMENT,2.00,,Housing
10-Jun-16,T'Lodge P'boro,PERSONAL DETAILS REDACTED,HH01,818,BED & BREAKFAST PAYMENT,497.00,,Housing
10-Jun-16,T'Lodge P'boro,Fee,HH01,818,BED & BREAKFAST PAYMENT,2.00,,Housing
10-Jun-16,T'Lodge Eye Green,PERSONAL DETAILS REDACTED,HH01,818,BED & BREAKFAST PAYMENT,414.00,,Housing
10-Jun-16,T'Lodge Eye Green,Fee,HH01,818,BED & BREAKFAST PAYMENT,2.00,,Housing
10-Jun-16,T'Lodge Alwalton,PERSONAL DETAILS REDACTED,HH01,818,BED & BREAKFAST PAYMENT,431.00,,Housing
10-Jun-16,T'Lodge Alwalton,Fee,HH01,818,BED & BREAKFAST PAYMENT,2.00,,Housing
10-Jun-16,T'Lodge Wyboston,PERSONAL DETAILS REDACTED,HH01,818,BED & BREAKFAST PAYMENT,272.00,,Housing
10-Jun-16,T'Lodge Wyboston,Fee,HH01,818,BED & BREAKFAST PAYMENT,2.00,,Housing
10-Jun-16,T'Lodge Wyboston,PERSONAL DETAILS REDACTED,HH01,818,BED & BREAKFAST PAYMENT,453.00,,Housing
10-Jun-16,T'Lodge Wyboston,Fee,HH01,818,BED & BREAKFAST PAYMENT,2.00,,Housing
10-Jun-16,T'Lodge Wyboston,PERSONAL DETAILS REDACTED,HH01,818,BED & BREAKFAST PAYMENT,460.00,,Housing
10-Jun-16,T'Lodge Wyboston,Fee,HH01,818,BED & BREAKFAST PAYMENT,2.00,,Housing
10-Jun-16,T'Lodge Wyboston,PERSONAL DETAILS REDACTED,HH01,818,BED & BREAKFAST PAYMENT,426.00,,Housing
10-Jun-16,T'Lodge Wyboston,Fee,HH01,818,BED & BREAKFAST PAYMENT,2.00,,Housing
10-Jun-16,T'Lodge P'boro,PERSONAL DETAILS REDACTED,HH01,818,BED & BREAKFAST PAYMENT,497.00,,Housing
10-Jun-16,T'Lodge P'boro,Fee,HH01,818,BED & BREAKFAST PAYMENT,2.00,,Housing
10-Jun-16,T'Lodge Wyboston,PERSONAL DETAILS REDACTED,HH01,818,BED & BREAKFAST PAYMENT,473.00,,Housing
10-Jun-16,T'Lodge Wyboston,Fee,HH01,818,BED & BREAKFAST PAYMENT,2.00,,Housing
10-Jun-16,Premier Inn St Neots,PERSONAL DETAILS REDACTED,HH01,818,BED & BREAKFAST PAYMENT,497.00,,Housing
10-Jul-16,T'Lodge P'boro,Refund,HH01,818,BED & BREAKFAST PAYMENT,-497.00,,Housing
13-Jun-16,T'Lodge Alwalton,PERSONAL DETAILS REDACTED,HH01,818,BED & BREAKFAST PAYMENT,487.00,,Housing
13-Jun-16,T'Lodge Alwalton,Fee,HH01,818,BED & BREAKFAST PAYMENT,2.00,,Housing
13-Jun-16,T'Lodge Alwalton,PERSONAL DETAILS REDACTED,HH01,818,BED & BREAKFAST PAYMENT,472.00,,Housing
13-Jun-16,T'Lodge Alwalton,Fee,HH01,818,BED & BREAKFAST PAYMENT,2.00,,Housing
14-Jun-16,Citizens Advice,Adviser Magazine renewal,MU35,250,Books & Publications,65.00,,Housing
13-Jun-16,Premier Inn H'Don,PERSONAL DETAILS REDACTED,HH01,818,BED & BREAKFAST PAYMENT,481.00,,Housing
13-Jun-16,Premier Inn H'Don,Fee,HH01,818,BED & BREAKFAST PAYMENT,2.00,,Housing
14-Jun-16,T'Lodge Wyboston,PERSONAL DETAILS REDACTED,HH01,818,BED & BREAKFAST PAYMENT,478.00,,Housing
14-Jun-16,T'Lodge Wyboston,Fee,HH01,818,BED & BREAKFAST PAYMENT,2.00,,Housing
15-Jun-16,T'Lodge Wyboston,PERSONAL DETAILS REDACTED,HH01,818,BED & BREAKFAST PAYMENT,479.00,,Housing
15-Jun-16,T'Lodge Wyboston,Fee,HH01,818,BED & BREAKFAST PAYMENT,2.00,,Housing
16-Jun-16,T'Lodge Wyboston,PERSONAL DETAILS REDACTED,HH01,818,BED & BREAKFAST PAYMENT,425.00,,Housing
16-Jun-16,T'Lodge Wyboston,Fee,HH01,818,BED & BREAKFAST PAYMENT,2.00,,Housing
16-Jun-16,T'Lodge Wyboston,PERSONAL DETAILS REDACTED,HH01,818,BED & BREAKFAST PAYMENT,180.00,,Housing
16-Jun-16,T'Lodge Wyboston,Fee,HH01,818,BED & BREAKFAST PAYMENT,2.00,,Housing
16-Jun-16,T'Lodge Ely,PERSONAL DETAILS REDACTED,HH01,818,BED & BREAKFAST PAYMENT,50.00,,Housing
16-Jun-16,T'Lodge Ely,Fee,HH01,818,BED & BREAKFAST PAYMENT,2.00,,Housing
17-Jun-16,T'Lodge Wyboston,PERSONAL DETAILS REDACTED,HH01,818,BED & BREAKFAST PAYMENT,370.00,,Housing
17-Jun-16,T'Lodge Wyboston,Fee,HH01,818,BED & BREAKFAST PAYMENT,2.00,,Housing
20-Jun-16,Child Povert Action Group,Welfare Benefits Handbook,MU35,250,Books & Publications,64.99,,Housing
27-Jun-16,T'Lodge Fenstanton,PERSONAL DETAILS REDACTED,HH01,818,BED & BREAKFAST PAYMENT,466.00,,Housing
27-Jun-16,T'Lodge Fenstanton,Fee,HH01,818,BED & BREAKFAST PAYMENT,2.00,,Housing
27-Jun-16,T'Lodge Wyboston,PERSONAL DETAILS REDACTED,HH01,818,BED & BREAKFAST PAYMENT,144.00,,Housing
27-Jun-16,T'Lodge Wyboston,Fee,HH01,818,BED & BREAKFAST PAYMENT,2.00,,Housing
28-Jun-16,T'Lodge Wyboston,PERSONAL DETAILS REDACTED,HH01,818,BED & BREAKFAST PAYMENT,317.00,,Housing
28-Jun-16,T'Lodge Wyboston,Fee,HH01,818,BED & BREAKFAST PAYMENT,2.00,,Housing
27-Jun-16,Premier Inn H'Don,PERSONAL DETAILS REDACTED,HH01,818,BED & BREAKFAST PAYMENT,558.00,,Housing
29-Jun-16,T'Lodge Alwalton,PERSONAL DETAILS REDACTED,HH01,818,BED & BREAKFAST PAYMENT,465.00,,Housing
29-Jun-16,T'Lodge Alwalton,Fee,HH01,818,BED & BREAKFAST PAYMENT,2.00,,Housing
30-Jun-16,T'Lodge Alwalton,PERSONAL DETAILS REDACTED,HH01,818,BED & BREAKFAST PAYMENT,472.00,,Housing
30-Jun-16,T'Lodge Alwalton,Fee,HH01,818,BED & BREAKFAST PAYMENT,2.00,,Housing
28-Jul-16,Cambs City,Car parking fees,MU75,636,TRAVEL EXPENSES,4.80,,Resources
06-Jul-16,fitness super store,Gym Equipment,LP02,524,Sports Equipment,36.94,,One Leisure Huntingdon
06-Jul-16,yoga studio,Fitness class equipment,LP10,524,Sports Equipment,97.20,,One Leisure Huntingdon
08-Jul-16,wickes,Maintenance,LP90,303,Building Maintenance,5.48,,One Leisure Huntingdon
25-Jul-16,screwfix,maintenance,LP90,303,Building Maintenance,10.99,,One Leisure Huntingdon
28-Jul-16,concept 2,Gym Equipment Maintenance,LP02,303,Building Maintenance,5.18,,One Leisure Huntingdon
28-Jul-16,wickes,Maintenance,LP90,303,Building Maintenance,9.09,,One Leisure Huntingdon
01-Aug-16,mick george,Skip Hire,LP90,763,WASTE DISPOSAL,228.00,,One Leisure Huntingdon
07-Jul-16,Travelodge,Refund,HH01,818,BED & BREAKFAST PAYMENT,-196.00,,Housing
13-Jul-16,Nextday Catering,Chip Scuttle,LD20,550,MATERIALS,342.61,,Operations
26-Jul-16,Facebook,Facebook Advertising,LP90,255,Advertising/Promoting Services,34.98,,One Leisure St Ives
28-Jul-16,Facebook,Facebook Advertising,LP90,255,Advertising/Promoting Services,706.85,,One Leisure St Ives
28-Jul-16,Facebook,Facebook Advertising,LP90,255,Advertising/Promoting Services,2.53,,One Leisure St Ives
31-Jul-16,Facebook,Facebook Advertising,LP90,255,Advertising/Promoting Services,133.97,,One Leisure St Ives
31-Jul-16,Facebook,Facebook Advertising,LP90,255,Advertising/Promoting Services,220.32,,One Leisure St Ives
31-Jul-16,Facebook,Facebook Advertising,LP90,255,Advertising/Promoting Services,4.95,,One Leisure St Ives
01-Aug-16,UKPOS,Goods,LP90,500,Equipment,157.20,,One Leisure St Ives
01-Aug-16,Midland Imports,Flags,LP90,500,Equipment,137.49,,One Leisure St Ives
01-Aug-16,Midland Imports,Flags,LP90,500,Equipment,-137.49,,One Leisure St Ives
07-Jul-16,DVLA,Vehicle Tax,ER01,609,VEHICLE LICENCE,232.50,,Operations
07-Jul-16,DVLA,Vehicle Tax,DP90,609,VEHICLE LICENCE,232.50,,Operations
11-Jul-16,DVLA,Vehicle Tax,ES01,609,VEHICLE LICENCE,232.50,,Operations
14-Jul-16,Shopfta,Driver card reader,ER01,500,Equipment,49.14,,Operations
27-Jul-16,BCW Office Products,Diversion signs,EG05,500,Equipment,153.22,,Operations
04-Jul-16,Survey Monkey,Event Marketing,LQ40,255,Advertising/Promoting Services,21.67,,One Leisure St Ives
06-Jul-16,Ticketsource,Event Cancellled,LQ20,744,Entertainments inc Cable TV,7.00,,One Leisure St Ives
06-Jul-16,Amazon,White Velcro,LQ20,550,MATERIALS,29.90,,One Leisure St Ives
07-Jul-16,Amazon,Xmas Parties Decs,LQ20,550,MATERIALS,11.32,,One Leisure St Ives
08-Jul-16,Amazon,Xmas Parties 1920's Cardboard cut outs,LQ20,550,MATERIALS,35.98,,One Leisure St Ives
09-Jul-16,Party Main,Xmas Parties Decs,LQ20,550,MATERIALS,11.97,,One Leisure St Ives
31-Jul-16,Facebook,Event Marketing,LQ40,255,Advertising/Promoting Services,17.59,,One Leisure St Ives
02-Aug-16,Amazon,Venue Xmas Decorations (Swirl),LQ20,550,MATERIALS,71.70,,One Leisure St Ives
02-Aug-16,Amazon,Xmas Parties Confetti,LQ20,550,MATERIALS,31.50,,One Leisure St Ives
21-Jul-16,Tesco,Food,LK90,559,Catering Materials,15.25,,One Leisure St Ives
25-Jul-16,Screwfix,Materials,LK90,500,Equipment,15.95,,One Leisure St Ives
25-Jul-16,Blacks,Tent pegs,LK90,500,Equipment,11.67,,One Leisure St Ives
25-Jul-16,Street Works Team,County Council - Street Works Licence,KG04,359,Sitework,480.00,,Community Services
18-Jul-16,A & R Engineering,Underdesk CPU Hanger,MD20,205,Network Hardware,386.40,,IMD
25-Jul-16,Microsoft,Azure My SQL Database,MD20,206,Software,2.87,,IMD
26-Jul-16,Jobserve,15 Job Credits Advertisements,MD20,100,Hired Staff,750.00,,IMD
29-Jul-16,Amazon,Data Protection Book,MD20,130,Training,79.90,,IMD
12-Jul-16,Posturite,Logitech Wireless Trackball M570,CH02,225,Stationery,77.99,,Corporate Office
07-Jul-16,Tesco,Nerf Bullets,LN10,500,Equipment,16.00,,One Leisure Huntingdon
18-Jul-16,Amazon,Junior Activity Equipment,LN10,500,Equipment,3.07,,One Leisure Huntingdon
18-Jul-16,Amazon,Junior Activity Equipment,LN10,500,Equipment,2.89,,One Leisure Huntingdon
18-Jul-16,Amazon,Junior Activity Equipment,LN10,500,Equipment,12.20,,One Leisure Huntingdon
18-Jul-16,Amazon,Junior Activity Equipment,LN10,500,Equipment,1.36,,One Leisure Huntingdon
18-Jul-16,Amazon,Junior Activity Equipment,LN10,500,Equipment,4.00,,One Leisure Huntingdon
18-Jul-16,Amazon,Junior Activity Equipment,LN10,500,Equipment,3.17,,One Leisure Huntingdon
18-Jul-16,Amazon,Junior Activity Equipment,LN10,500,Equipment,2.98,,One Leisure Huntingdon
18-Jul-16,Amazon,Junior Activity Equipment,LN10,500,Equipment,16.70,,One Leisure Huntingdon
02-Aug-16,B & Q,Electrical Extension Lead & Padlocks,LN90,500,Equipment,66.97,,One Leisure Huntingdon
01-Jul-16,T'Lodge Grantham,PERSONAL DETAILS REDACTED,HH01,818,BED & BREAKFAST PAYMENT,518.00,,Housing
01-Jul-16,T'Lodge Grantham,Fee,HH01,818,BED & BREAKFAST PAYMENT,2.00,,Housing
01-Jul-16,T'Lodge Grantham,PERSONAL DETAILS REDACTED,HH01,818,BED & BREAKFAST PAYMENT,518.00,,Housing
01-Jul-16,T'Lodge Grantham,Fee,HH01,818,BED & BREAKFAST PAYMENT,2.00,,Housing
01-Jul-16,Premier Inn Hampton,PERSONAL DETAILS REDACTED,HH01,818,BED & BREAKFAST PAYMENT,465.00,,Housing
01-Jul-16,Premier Inn St Neots,PERSONAL DETAILS REDACTED,HH01,818,BED & BREAKFAST PAYMENT,555.00,,Housing
01-Jul-16,T'Lodge Wyboston,Refund,HH01,818,BED & BREAKFAST PAYMENT,-327.00,,Housing
04-Jul-16,T'Lodge Fenstanton,PERSONAL DETAILS REDACTED,HH01,818,BED & BREAKFAST PAYMENT,324.00,,Housing
04-Jul-16,T'Lodge Fenstanton,Fee,HH01,818,BED & BREAKFAST PAYMENT,2.00,,Housing
04-Jul-16,T'Lodge Alwalton,PERSONAL DETAILS REDACTED,HH01,818,BED & BREAKFAST PAYMENT,211.00,,Housing
04-Jul-16,T'Lodge Alwalton,Fee,HH01,818,BED & BREAKFAST PAYMENT,2.00,,Housing
04-Jul-16,T'Lodge Fenstanton,PERSONAL DETAILS REDACTED,HH01,818,BED & BREAKFAST PAYMENT,475.00,,Housing
04-Jul-16,T'Lodge Fenstanton,Fee,HH01,818,BED & BREAKFAST PAYMENT,2.00,,Housing
04-Jul-16,T'Lodge Wyboston,PERSONAL DETAILS REDACTED,HH01,818,BED & BREAKFAST PAYMENT,482.00,,Housing
04-Jul-16,T'Lodge Wyboston,Fee,HH01,818,BED & BREAKFAST PAYMENT,2.00,,Housing
04-Jul-16,T'Lodge Alwalton,PERSONAL DETAILS REDACTED,HH01,818,BED & BREAKFAST PAYMENT,272.00,,Housing
04-Jul-16,T'Lodge Alwalton,Fee,HH01,818,BED & BREAKFAST PAYMENT,2.00,,Housing
04-Jul-16,T'Lodge Fenstanton,Refund,HH01,818,BED & BREAKFAST PAYMENT,-475.00,,Housing
04-Jul-16,T'Lodge,Refund,HH01,818,BED & BREAKFAST PAYMENT,-71.00,,Housing
04-Jul-16,Premier Inn Brampton,PERSONAL DETAILS REDACTED,HH01,818,BED & BREAKFAST PAYMENT,499.50,,Housing
04-Jul-16,Premier Inn Brampton,Fee,HH01,818,BED & BREAKFAST PAYMENT,2.00,,Housing
05-Jul-16,T'Lodge Alwalton,PERSONAL DETAILS REDACTED,HH01,818,BED & BREAKFAST PAYMENT,415.00,,Housing
05-Jul-16,T'Lodge Alwalton,Fee,HH01,818,BED & BREAKFAST PAYMENT,2.00,,Housing
05-Jul-16,T'Lodge Alwalton,PERSONAL DETAILS REDACTED,HH01,818,BED & BREAKFAST PAYMENT,226.00,,Housing
05-Jul-16,T'Lodge Alwalton,Fee,HH01,818,BED & BREAKFAST PAYMENT,2.00,,Housing
05-Jul-16,T'Lodge Alwalton,PERSONAL DETAILS REDACTED,HH01,818,BED & BREAKFAST PAYMENT,426.00,,Housing
05-Jul-16,T'Lodge Alwalton,Fee,HH01,818,BED & BREAKFAST PAYMENT,2.00,,Housing
06-Jul-16,T'Lodge Alwalton,PERSONAL DETAILS REDACTED,HH01,818,BED & BREAKFAST PAYMENT,237.00,,Housing
06-Jul-16,T'Lodge Alwalton,Fee,HH01,818,BED & BREAKFAST PAYMENT,2.00,,Housing
06-Jul-16,T'Lodge Fenstanton,PERSONAL DETAILS REDACTED,HH01,818,BED & BREAKFAST PAYMENT,89.00,,Housing
06-Jul-16,T'Lodge Fenstanton,Fee,HH01,818,BED & BREAKFAST PAYMENT,2.00,,Housing
06-Jul-16,T'Lodge Fenstanton,PERSONAL DETAILS REDACTED,HH01,818,BED & BREAKFAST PAYMENT,520.00,,Housing
06-Jul-16,T'Lodge Fenstanton,Fee,HH01,818,BED & BREAKFAST PAYMENT,2.00,,Housing
06-Jul-16,T'Lodge Swavesey,PERSONAL DETAILS REDACTED,HH01,818,BED & BREAKFAST PAYMENT,109.00,,Housing
06-Jul-16,T'Lodge Swavesey,Fee,HH01,818,BED & BREAKFAST PAYMENT,2.00,,Housing
07-Jul-16,T'Lodge Alwalton,PERSONAL DETAILS REDACTED,HH01,818,BED & BREAKFAST PAYMENT,523.00,,Housing
07-Jul-16,T'Lodge Alwalton,Fee,HH01,818,BED & BREAKFAST PAYMENT,2.00,,Housing
07-Jul-16,T'Lodge Lolworth,PERSONAL DETAILS REDACTED,HH01,818,BED & BREAKFAST PAYMENT,497.00,,Housing
07-Jul-16,T'Lodge Lolworth,Fee,HH01,818,BED & BREAKFAST PAYMENT,2.00,,Housing
07-Jul-16,T'Lodge Wyboston,Refund,HH01,818,BED & BREAKFAST PAYMENT,-45.00,,Housing
07-Jul-16,Premier Inn Hampton,PERSONAL DETAILS REDACTED,HH01,818,BED & BREAKFAST PAYMENT,15.00,,Housing
07-Jul-16,Premier Inn St Neots,PERSONAL DETAILS REDACTED,HH01,818,BED & BREAKFAST PAYMENT,520.00,,Housing
07-Jul-16,Premier Inn Norman Cross,PERSONAL DETAILS REDACTED,HH01,818,BED & BREAKFAST PAYMENT,487.00,,Housing
08-Jul-16,T'Lodge Spalding,PERSONAL DETAILS REDACTED,HH01,818,BED & BREAKFAST PAYMENT,133.00,,Housing
08-Jul-16,T'Lodge Spalding,Fee,HH01,818,BED & BREAKFAST PAYMENT,2.00,,Housing
11-Jul-16,T'Lodge Grantham,PERSONAL DETAILS REDACTED,HH01,818,BED & BREAKFAST PAYMENT,369.00,,Housing
11-Jul-16,T'Lodge Grantham,Fee,HH01,818,BED & BREAKFAST PAYMENT,2.00,,Housing
11-Jul-16,T'Lodge Grantham,PERSONAL DETAILS REDACTED,HH01,818,BED & BREAKFAST PAYMENT,369.00,,Housing
11-Jul-16,T'Lodge Grantham,Fee,HH01,818,BED & BREAKFAST PAYMENT,2.00,,Housing
11-Jul-16,T'Lodge Swavesey,PERSONAL DETAILS REDACTED,HH01,818,BED & BREAKFAST PAYMENT,472.00,,Housing
11-Jul-16,T'Lodge Swavesey,Fee,HH01,818,BED & BREAKFAST PAYMENT,2.00,,Housing
12-Jul-16,T'Lodge Wyboston,PERSONAL DETAILS REDACTED,HH01,818,BED & BREAKFAST PAYMENT,470.00,,Housing
12-Jul-16,T'Lodge Wyboston,Fee,HH01,818,BED & BREAKFAST PAYMENT,2.00,,Housing
12-Jul-16,Premier Inn Brampton,PERSONAL DETAILS REDACTED,HH01,818,BED & BREAKFAST PAYMENT,466.50,,Housing
12-Jul-16,Premier Inn Brampton,Fee,HH01,818,BED & BREAKFAST PAYMENT,2.00,,Housing
13-Jul-16,T'Lodge Alwalton,PERSONAL DETAILS REDACTED,HH01,818,BED & BREAKFAST PAYMENT,52.00,,Housing
13-Jul-16,T'Lodge Alwalton,Fee,HH01,818,BED & BREAKFAST PAYMENT,2.00,,Housing
14-Jul-16,T'Lodge Alwalton,PERSONAL DETAILS REDACTED,HH01,818,BED & BREAKFAST PAYMENT,282.00,,Housing
14-Jul-16,T'Lodge Alwalton,Fee,HH01,818,BED & BREAKFAST PAYMENT,2.00,,Housing
14-Jul-16,Premier Inn Norman Cross,PERSONAL DETAILS REDACTED,HH01,818,BED & BREAKFAST PAYMENT,470.00,,Housing
15-Jul-16,Premier Inn St Neots,PERSONAL DETAILS REDACTED,HH01,818,BED & BREAKFAST PAYMENT,572.00,,Housing
18-Jul-16,T'Lodge Wyboston,Refund,HH01,818,BED & BREAKFAST PAYMENT,-63.00,,Housing
18-Jul-16,T'Lodge Fenstanton,PERSONAL DETAILS REDACTED,HH01,818,BED & BREAKFAST PAYMENT,486.00,,Housing
18-Jul-16,T'Lodge Fenstanton,Fee,HH01,818,BED & BREAKFAST PAYMENT,2.00,,Housing
18-Jul-16,T'Lodge Alwalton,PERSONAL DETAILS REDACTED,HH01,818,BED & BREAKFAST PAYMENT,258.00,,Housing
18-Jul-16,T'Lodge Alwalton,Fee,HH01,818,BED & BREAKFAST PAYMENT,2.00,,Housing
18-Jul-16,T'Lodge Grantham,PERSONAL DETAILS REDACTED,HH01,818,BED & BREAKFAST PAYMENT,415.00,,Housing
18-Jul-16,T'Lodge Grantham,Fee,HH01,818,BED & BREAKFAST PAYMENT,2.00,,Housing
18-Jul-16,T'Lodge Grantham,PERSONAL DETAILS REDACTED,HH01,818,BED & BREAKFAST PAYMENT,415.00,,Housing
18-Jul-16,T'Lodge Grantham,Fee,HH01,818,BED & BREAKFAST PAYMENT,2.00,,Housing
18-Jul-16,T'Lodge Swavesey,PERSONAL DETAILS REDACTED,HH01,818,BED & BREAKFAST PAYMENT,126.00,,Housing
18-Jul-16,T'Lodge Swavesey,Fee,HH01,818,BED & BREAKFAST PAYMENT,2.00,,Housing
18-Jul-16,T'Lodge Alwalton,PERSONAL DETAILS REDACTED,HH01,818,BED & BREAKFAST PAYMENT,482.00,,Housing
18-Jul-16,T'Lodge Alwalton,Fee,HH01,818,BED & BREAKFAST PAYMENT,2.00,,Housing
18-Jul-16,T'Lodge Wyboston,PERSONAL DETAILS REDACTED,HH01,818,BED & BREAKFAST PAYMENT,148.00,,Housing
18-Jul-16,T'Lodge Wyboston,Fee,HH01,818,BED & BREAKFAST PAYMENT,2.00,,Housing
19-Jul-16,T'Lodge Alwalton,PERSONAL DETAILS REDACTED,HH01,818,BED & BREAKFAST PAYMENT,217.00,,Housing
19-Jul-16,T'Lodge Alwalton,Fee,HH01,818,BED & BREAKFAST PAYMENT,2.00,,Housing
19-Jul-16,T'Lodge Alwalton,PERSONAL DETAILS REDACTED,HH01,818,BED & BREAKFAST PAYMENT,155.00,,Housing
19-Jul-16,T'Lodge Alwalton,Fee,HH01,818,BED & BREAKFAST PAYMENT,2.00,,Housing
21-Jul-16,Premier Inn Ferry Meadows,PERSONAL DETAILS REDACTED,HH01,818,BED & BREAKFAST PAYMENT,235.00,,Housing
21-Jul-16,Premier Inn Hampton,PERSONAL DETAILS REDACTED,HH01,818,BED & BREAKFAST PAYMENT,507.00,,Housing
22-Jul-16,T'Lodge Wyboston,PERSONAL DETAILS REDACTED,HH01,818,BED & BREAKFAST PAYMENT,244.00,,Housing
22-Jul-16,T'Lodge Wyboston,Fee,HH01,818,BED & BREAKFAST PAYMENT,2.00,,Housing
22-Jul-16,T'Lodge Fenstanton,PERSONAL DETAILS REDACTED,HH01,818,BED & BREAKFAST PAYMENT,423.00,,Housing
22-Jul-16,T'Lodge Fenstanton,Fee,HH01,818,BED & BREAKFAST PAYMENT,2.00,,Housing
22-Jul-16,Premier Inn St Neots,PERSONAL DETAILS REDACTED,HH01,818,BED & BREAKFAST PAYMENT,497.00,,Housing
25-Jul-16,T'Lodge Alwalton,PERSONAL DETAILS REDACTED,HH01,818,BED & BREAKFAST PAYMENT,555.00,,Housing
25-Jul-16,T'Lodge Alwalton,Fee,HH01,818,BED & BREAKFAST PAYMENT,2.00,,Housing
25-Jul-16,T'Lodge Grantham,PERSONAL DETAILS REDACTED,HH01,818,BED & BREAKFAST PAYMENT,162.00,,Housing
25-Jul-16,T'Lodge Grantham,Fee,HH01,818,BED & BREAKFAST PAYMENT,2.00,,Housing
25-Jul-16,T'Lodge Grantham,PERSONAL DETAILS REDACTED,HH01,818,BED & BREAKFAST PAYMENT,162.00,,Housing
25-Jul-16,T'Lodge Grantham,Fee,HH01,818,BED & BREAKFAST PAYMENT,2.00,,Housing
25-Jul-16,T'Lodge Alwalton,PERSONAL DETAILS REDACTED,HH01,818,BED & BREAKFAST PAYMENT,136.00,,Housing
25-Jul-16,T'Lodge Alwalton,Fee,HH01,818,BED & BREAKFAST PAYMENT,2.00,,Housing
25-Jul-16,T'Lodge Fenstanton,PERSONAL DETAILS REDACTED,HH01,818,BED & BREAKFAST PAYMENT,448.00,,Housing
25-Jul-16,T'Lodge Fenstanton,Fee,HH01,818,BED & BREAKFAST PAYMENT,2.00,,Housing
25-Jul-16,T'Lodge Alwalton,PERSONAL DETAILS REDACTED,HH01,818,BED & BREAKFAST PAYMENT,262.00,,Housing
25-Jul-16,T'Lodge Alwalton,Fee,HH01,818,BED & BREAKFAST PAYMENT,2.00,,Housing
27-Jul-16,T'Lodge Wyboston,PERSONAL DETAILS REDACTED,HH01,818,BED & BREAKFAST PAYMENT,455.00,,Housing
27-Jul-16,T'Lodge Wyboston,Fee,HH01,818,BED & BREAKFAST PAYMENT,2.00,,Housing
27-Jul-16,Premier Inn P'boro,PERSONAL DETAILS REDACTED,HH01,818,BED & BREAKFAST PAYMENT,573.00,,Housing
28-Jul-16,T'Lodge P'boro,PERSONAL DETAILS REDACTED,HH01,818,BED & BREAKFAST PAYMENT,503.00,,Housing
28-Jul-16,T'Lodge P'boro,Fee,HH01,818,BED & BREAKFAST PAYMENT,2.00,,Housing
28-Jul-16,T'Lodge Grantham,PERSONAL DETAILS REDACTED,HH01,818,BED & BREAKFAST PAYMENT,94.00,,Housing
28-Jul-16,T'Lodge Grantham,Fee,HH01,818,BED & BREAKFAST PAYMENT,2.00,,Housing
28-Jul-16,T'Lodge P'boro,Refund,HH01,818,BED & BREAKFAST PAYMENT,-503.00,,Housing
28-Jul-16,T'Lodge Wyboston,Refund,HH01,818,BED & BREAKFAST PAYMENT,-272.00,,Housing
28-Jul-16,Premier Inn Hampton,PERSONAL DETAILS REDACTED,HH01,818,BED & BREAKFAST PAYMENT,316.00,,Housing
29-Jul-16,T'Lodge Leicester,PERSONAL DETAILS REDACTED,HH01,818,BED & BREAKFAST PAYMENT,360.00,,Housing
29-Jul-16,T'Lodge Leicester,Fee,HH01,818,BED & BREAKFAST PAYMENT,2.00,,Housing
01-Aug-16,T'Lodge Fenstanton,PERSONAL DETAILS REDACTED,HH01,818,BED & BREAKFAST PAYMENT,401.00,,Housing
01-Aug-16,T'Lodge Fenstanton,Fee,HH01,818,BED & BREAKFAST PAYMENT,2.00,,Housing
01-Aug-16,Premier Inn P'boro,Refund,HH01,818,BED & BREAKFAST PAYMENT,-513.00,,Housing
02-Jul-16,Amazon,Aten CS22U 2-Port USB Cables,MD20,203,Other IT Hardware,17.77,,IMD
02-Jul-16,Amazon,HDMI to VGA Adapter,MD20,203,Other IT Hardware,15.98,,IMD
04-Jul-16,1&1 Intranet,Domain name Subscription,MD20,206,Software,11.99,,IMD
04-Jul-16,1&1 Intranet,Domain name Subscription,MU67,206,Software,13.19,,IMD
05-Jul-16,Hotel Ibis,PERSONAL DETAILS REDACTED,MD20,130,Training,153.95,,IMD
07-Jul-16,Amazon,Wi-Fi Router,MD20,203,Other IT Hardware,77.30,,IMD
08-Jul-16,Screwfix,Philex Cable Tidy,CH22,500,Equipment,12.86,,IMD
10-Jul-16,Amazon,Aten CS22U 2 Port USB Cable,MD20,203,Other IT Hardware,17.77,,IMD
13-Jul-16,1&1 Intranet,Domain name Subscription,MU67,206,Software,11.99,,IMD
20-Jul-16,Travelodge,PERSONAL DETAILS REDACTED,MD20,130,Training,719.50,,IMD
20-Jul-16,Travelodge,PERSONAL DETAILS REDACTED,MD20,130,Training,622.50,,IMD
21-Jul-16,VPS UPS,RBC18 Replacement Battery,MD20,203,Other IT Hardware,64.28,,IMD
21-Jul-16,VPS UPS,RBC18 Replacement Battery,MD20,203,Other IT Hardware,3.99,,IMD
21-Jul-16,Amazon,Lumia 640 phone case,MU26,203,Other IT Hardware,15.92,,IMD
27-Jul-16,GitHub,Software Subscription,MD20,206,Software,19.69,,IMD
28-Jul-16,Amazon,StarTech USB 2.0 to Gigabit Adapter,MD20,203,Other IT Hardware,43.20,,IMD
05-Jul-16,Wildy and Sons Ltd,Two Historic Law books- conservation,MU16,250,Books & Publications,78.00,,Planning
16-Aug-16,Fitness Superstore,Fitness Superstore,LP90,524,Sports Equipment,92.68,,One Leisure Huntingdon
29-Aug-16,Made4Fighters,Made4Fighters,LP90,524,Sports Equipment,129.75,,One Leisure Huntingdon
03-Aug-16,Midland Imports,Olympic Flag Bunting,LL01,255,Advertising/Promoting Services,137.49,,One Leisure St Ives
11-Aug-16,Facebook,Facebook Advertising,LL01,255,Advertising/Promoting Services,21.90,,One Leisure St Ives
11-Aug-16,Facebook,Facebook Advertising,LL01,255,Advertising/Promoting Services,578.15,,One Leisure St Ives
16-Aug-16,Momentum,Marketing Summit x 2,LQ02,130,Training,261.09,,One Leisure St Ives
31-Aug-16,Facebook,Facebook Advertising,LL01,255,Advertising/Promoting Services,15.28,,One Leisure St Ives
31-Aug-16,Facebook,Facebook Advertising,LL01,255,Advertising/Promoting Services,164.81,,One Leisure St Ives
31-Aug-16,Facebook,Facebook Advertising,LL01,255,Advertising/Promoting Services,8.47,,One Leisure St Ives
31-Aug-16,Mailchip,HDC E-newsletter credits,CJ10,754,CORPORATE SUBSCRIPTIONS,386.74,,One Leisure St Ives
04-Aug-16,FTA,HGV vehicle check posters,MU95,500,Equipment,44.34,,Operations
08-Aug-16,DVLA,Vehicle Tax,ER01,609,VEHICLE LICENCE,652.50,,Operations
08-Aug-16,DVLA,Vehicle Tax,ER01,609,VEHICLE LICENCE,652.50,,Operations
08-Aug-16,DVLA,Vehicle Tax,ER01,609,VEHICLE LICENCE,652.50,,Operations
08-Aug-16,DVLA,Vehicle Tax,ER01,609,VEHICLE LICENCE,652.50,,Operations
08-Aug-16,DVLA,Vehicle Tax,ER01,609,VEHICLE LICENCE,652.50,,Operations
09-Aug-16,DVLA,Vehicle Tax,ES01,609,VEHICLE LICENCE,232.50,,Operations
09-Aug-16,DVLA,Vehicle Tax,MF10,609,VEHICLE LICENCE,232.50,,Operations
03-Aug-16,Amazon,Xmas Party materials,LQ21,550,MATERIALS,23.94,,One Leisure St Ives
04-Aug-16,Survey Monkey,Marketing,LQ40,255,Advertising/Promoting Services,21.67,,One Leisure St Ives
09-Aug-16,Office Furniture,Cupboard for Committee Suite,LQ21,500,Equipment,231.60,,One Leisure St Ives
31-Aug-16,Facebook,Marketing,LQ40,255,Advertising/Promoting Services,45.38,,One Leisure St Ives
18-Aug-16,Bakeross,creche supplies,LQ91,550,MATERIALS,12.01,,One Leisure St Ives
18-Aug-16,Bakeross,creche supplies,LQ91,550,MATERIALS,21.92,,One Leisure St Ives
05-Aug-16,Microsoft,Annual renewal of Sharepoint Online,MD20,206,Software,"1,800.00",,IMD
12-Aug-16,Pingdom,Pingdom Standard Monitoring,MD20,206,Software,373.45,,IMD
22-Aug-16,Microsoft,SQL Database subsription,MD20,206,Software,2.87,,IMD
24-Aug-16,DoubleTree,Hotel booking for ADSO Conference,CH02,130,Training,255.00,,IMD
31-Aug-16,Appliance Spares,Appliance Spares,LN90,511,Equipment Maintenance,10.48,,One Leisure Huntingdon
31-Aug-16,Tesco's,Fuel,LN90,615,DIESEL,11.78,,One Leisure Huntingdon
04-Aug-16,T'Lodge Wyboston,PERSONAL DETAILS REDACTED,HH01,818,BED & BREAKFAST PAYMENT,460.00,,Housing
04-Aug-16,T'Lodge Wyboston,Fee,HH01,818,BED & BREAKFAST PAYMENT,2.00,,Housing
04-Aug-16,T'Lodge Fenstanton,PERSONAL DETAILS REDACTED,HH01,818,BED & BREAKFAST PAYMENT,55.00,,Housing
04-Aug-16,T'Lodge Fenstanton,Fee,HH01,818,BED & BREAKFAST PAYMENT,2.00,,Housing
04-Aug-16,Premier Inn P'boro,PERSONAL DETAILS REDACTED,HH01,818,BED & BREAKFAST PAYMENT,527.00,,Housing
04-Aug-16,Premier Inn P'boro,PERSONAL DETAILS REDACTED,HH01,818,BED & BREAKFAST PAYMENT,327.00,,Housing
05-Aug-16,T'Lodge Leicester,PERSONAL DETAILS REDACTED,HH01,818,BED & BREAKFAST PAYMENT,394.00,,Housing
05-Aug-16,T'Lodge Leicester,Fee,HH01,818,BED & BREAKFAST PAYMENT,2.00,,Housing
08-Aug-16,T'Lodge Alwalton,PERSONAL DETAILS REDACTED,HH01,818,BED & BREAKFAST PAYMENT,369.00,,Housing
08-Aug-16,T'Lodge Alwalton,Fee,HH01,818,BED & BREAKFAST PAYMENT,2.00,,Housing
11-Aug-16,T'Lodge Leicester,PERSONAL DETAILS REDACTED,HH01,818,BED & BREAKFAST PAYMENT,307.00,,Housing
11-Aug-16,T'Lodge Leicester,Fee,HH01,818,BED & BREAKFAST PAYMENT,2.00,,Housing
12-Aug-16,T'Lodge Wyboston,PERSONAL DETAILS REDACTED,HH01,818,BED & BREAKFAST PAYMENT,489.00,,Housing
12-Aug-16,T'Lodge Wyboston,Fee,HH01,818,BED & BREAKFAST PAYMENT,2.00,,Housing
12-Aug-16,T'Lodge Bedford,PERSONAL DETAILS REDACTED,HH01,818,BED & BREAKFAST PAYMENT,157.00,,Housing
12-Aug-16,T'Lodge Bedford,Fee,HH01,818,BED & BREAKFAST PAYMENT,2.00,,Housing
15-Aug-16,T'Lodge Alwalton,PERSONAL DETAILS REDACTED,HH01,818,BED & BREAKFAST PAYMENT,259.00,,Housing
15-Aug-16,T'Lodge Alwalton,Fee,HH01,818,BED & BREAKFAST PAYMENT,2.00,,Housing
15-Aug-16,T'Lodge Alwalton,PERSONAL DETAILS REDACTED,HH01,818,BED & BREAKFAST PAYMENT,351.00,,Housing
15-Aug-16,T'Lodge Alwalton,Fee,HH01,818,BED & BREAKFAST PAYMENT,2.00,,Housing
15-Aug-16,T'Lodge ,Refund,HH01,818,BED & BREAKFAST PAYMENT,-236.00,,Housing
15-Aug-16,T'Lodge ,Refund,HH01,818,BED & BREAKFAST PAYMENT,-88.00,,Housing
17-Aug-16,T'Lodge Leicester,PERSONAL DETAILS REDACTED,HH01,818,BED & BREAKFAST PAYMENT,417.00,,Housing
17-Aug-16,T'Lodge Leicester,Fee,HH01,818,BED & BREAKFAST PAYMENT,2.00,,Housing
17-Aug-16,Premier Inn P'boro,PERSONAL DETAILS REDACTED,HH01,818,BED & BREAKFAST PAYMENT,430.50,,Housing
17-Aug-16,Premier Inn P'boro,Fee,HH01,818,BED & BREAKFAST PAYMENT,2.00,,Housing
17-Aug-16,Premier Inn P'boro,PERSONAL DETAILS REDACTED,HH01,818,BED & BREAKFAST PAYMENT,446.50,,Housing
17-Aug-16,Premier Inn P'boro,Fee,HH01,818,BED & BREAKFAST PAYMENT,2.00,,Housing
22-Aug-16,T'Lodge Swavesey,PERSONAL DETAILS REDACTED,HH01,818,BED & BREAKFAST PAYMENT,532.00,,Housing
22-Aug-16,T'Lodge Swavesey,Fee,HH01,818,BED & BREAKFAST PAYMENT,2.00,,Housing
22-Aug-16,T'Lodge Wyboston,PERSONAL DETAILS REDACTED,HH01,818,BED & BREAKFAST PAYMENT,267.00,,Housing
22-Aug-16,T'Lodge Wyboston,Fee,HH01,818,BED & BREAKFAST PAYMENT,2.00,,Housing
22-Aug-16,T'Lodge Wyboston,PERSONAL DETAILS REDACTED,HH01,818,BED & BREAKFAST PAYMENT,187.00,,Housing
22-Aug-16,T'Lodge Wyboston,Fee,HH01,818,BED & BREAKFAST PAYMENT,2.00,,Housing
22-Aug-16,T'Lodge Swavesey,PERSONAL DETAILS REDACTED,HH01,818,BED & BREAKFAST PAYMENT,532.00,,Housing
22-Aug-16,T'Lodge Swavesey,Fee,HH01,818,BED & BREAKFAST PAYMENT,2.00,,Housing
22-Aug-16,Marston Book Services Ltd,Housing Law Publications,MU35,250,Books & Publications,153.50,,Housing
23-Aug-16,T'Lodge Leicester,PERSONAL DETAILS REDACTED,HH01,818,BED & BREAKFAST PAYMENT,414.00,,Housing
23-Aug-16,T'Lodge Leicester,Fee,HH01,818,BED & BREAKFAST PAYMENT,2.00,,Housing
23-Aug-16,T'Lodge Swavesey,PERSONAL DETAILS REDACTED,HH01,818,BED & BREAKFAST PAYMENT,165.00,,Housing
23-Aug-16,T'Lodge Swavesey,Fee,HH01,818,BED & BREAKFAST PAYMENT,2.00,,Housing
19-Aug-16,T'Lodge Wyboston,PERSONAL DETAILS REDACTED,HH01,818,BED & BREAKFAST PAYMENT,547.00,,Housing
19-Aug-16,T'Lodge Wyboston,Fee,HH01,818,BED & BREAKFAST PAYMENT,2.00,,Housing
24-Aug-16,T'Lodge Fenstanton,PERSONAL DETAILS REDACTED,HH01,818,BED & BREAKFAST PAYMENT,304.00,,Housing
24-Aug-16,T'Lodge Fenstanton,Fee,HH01,818,BED & BREAKFAST PAYMENT,2.00,,Housing
25-Aug-16,Roddons HA,Allpay rent payment,HH01,816,INCENTIVE PAYMENT,99.55,,Housing
30-Aug-16,T'Lodge Fenstanton,PERSONAL DETAILS REDACTED,HH01,818,BED & BREAKFAST PAYMENT,55.00,,Housing
30-Aug-16,T'Lodge Fenstanton,Fee,HH01,818,BED & BREAKFAST PAYMENT,2.00,,Housing
30-Aug-16,T'Lodge Fenstanton,PERSONAL DETAILS REDACTED,HH01,818,BED & BREAKFAST PAYMENT,429.00,,Housing
30-Aug-16,T'Lodge Fenstanton,Fee,HH01,818,BED & BREAKFAST PAYMENT,2.00,,Housing
31-Aug-16,T'Lodge Wyboston,PERSONAL DETAILS REDACTED,HH01,818,BED & BREAKFAST PAYMENT,390.00,,Housing
31-Aug-16,T'Lodge Wyboston,Fee,HH01,818,BED & BREAKFAST PAYMENT,2.00,,Housing
31-Aug-16,T'Lodge,Refund,HH01,818,BED & BREAKFAST PAYMENT,-176.00,,Housing
03-Aug-16,Amazon,Hard Shell EVA Case,MD20,203,Other IT Hardware,325.23,,IMD
10-Aug-16,Misco,TP-Link Wireless PCI Adapter,MD20,203,Other IT Hardware,239.09,,IMD
12-Aug-16,Amazon,Mains UK 3pin charger for Lumia 640,MD20,203,Other IT Hardware,3.12,,IMD
12-Aug-16,Dennis Publishing,PC Pro Subscription for Web Team,MD20,206,Software,49.99,,IMD
15-Aug-16,1&1 Internet,Instant Domain ,MD20,206,Software,23.98,,IMD
26-Aug-16,Amazon,SanDisk Ultra 16GB Fkash Drive,MD20,206,Software,27.95,,IMD
27-Aug-16,GitHub,GitHub.com Subscription,MD20,206,Software,19.55,,IMD
31-Aug-16,BCS Subscriptions,BCS Renewal,MD20,206,Software,86.00,,IMD
27-Sep-16,Amazon,Private purch in error. Fully refunded.,MU75,250,Books & Publications,4.73,,Resources
06-Sep-16,ukdba,dodge balls,LP10,500,Equipment,66.65,,One Leisure Huntingdon
16-Sep-16,wickes,Drainage rods,LP90,303,Building Maintenance,17.98,,One Leisure Huntingdon
16-Sep-16,camlab,sample bottles,LP01,500,Equipment,44.99,,One Leisure Huntingdon
26-Sep-16,post office,postage,LP90,231,Postage,7.25,,One Leisure Huntingdon
26-Sep-16,lifesavers direct,Life saving rookies ,LP01,500,Equipment,44.95,,One Leisure Huntingdon
03-Oct-16,fitness warehouse,gym equipment.,LP02,500,Equipment,153.60,,One Leisure Huntingdon
21-Sep-16,Direct365,Hot Water Urn,LD20,500,Equipment,70.74,,Operations
21-Sep-16,Direct365,Hot Water Urn - Delivery,LD20,500,Equipment,8.70,,Operations
20-Sep-16,Mammoth Retail Group,Safety Boots x 2,ER01,163,Protective Clothing and Uniforms,119.11,,Operations
02-Sep-16,Mumsnet,Creche Advertising,LN90,255,Advertising/Promoting Services,75.00,,One Leisure St Ives
02-Sep-16,Mumsnet,Creche Advertising,LN90,255,Advertising/Promoting Services,60.00,,One Leisure St Ives
30-Sep-16,Facebook,Facebook Advertising,LQ21,255,Advertising/Promoting Services,16.83,,One Leisure St Ives
30-Sep-16,Facebook,Facebook Advertising,LQ21,255,Advertising/Promoting Services,83.17,,One Leisure St Ives
30-Sep-16,Facebook,Facebook Advertising,LQ21,255,Advertising/Promoting Services,260.24,,One Leisure St Ives
30-Sep-16,Facebook,Facebook Advertising,LQ21,255,Advertising/Promoting Services,14.76,,One Leisure St Ives
07-Sep-16,DVLA,Vehicle Tax,ES01,609,VEHICLE LICENCE,142.50,,Operations
04-Sep-16,Survey Monkey,Event Marketing,LQ90,255,Advertising/Promoting Services,21.67,,One Leisure St Ives
07-Sep-16,PayPal,Racking units and brackets,LQ21,500,Equipment,51.78,,One Leisure St Ives
10-Sep-16,Amazon,Cable Ties,LQ21,500,Equipment,4.49,,One Leisure St Ives
11-Sep-16,Amazon,Cable Ties,LQ21,500,Equipment,3.29,,One Leisure St Ives
13-Sep-16,Amazon,Theatre book,LQ21,550,MATERIALS,14.98,,One Leisure St Ives
17-Sep-16,Amazon,Coat Hangers,LQ21,550,MATERIALS,28.77,,One Leisure St Ives
20-Sep-16,Replacement Ke,Replacement Key,LQ21,550,MATERIALS,13.85,,One Leisure St Ives
21-Sep-16,Virgin Trains,Train tickets to a hospitality/food show,LQ21,P41,Mileage allowance,31.80,,One Leisure St Ives
21-Sep-16,PayPal,Xmas Party,LQ21,550,MATERIALS,24.98,,One Leisure St Ives
21-Sep-16,Paypal,Xmas Party,LQ21,550,MATERIALS,-24.98,,One Leisure St Ives
26-Sep-16,Replacement Ke,Replacement Key,LQ21,550,MATERIALS,-13.85,,One Leisure St Ives
30-Sep-16,Facebook,Event Marketing,LQ90,255,Advertising/Promoting Services,11.41,,One Leisure St Ives
20-Oct-16,Paul Norman Plastics,Gumshileds,LQ90,570,Materials for resale,33.60,,One Leisure St Ives
22-Sep-16,CIIEH,PERSONAL DETAILS REDACTED,MH07,130,Training,179.00,,Community Services
02-Sep-16,Microsoft,Online services Annual Subscription,MD20,206,Software,148.80,,IMD
15-Sep-16,Google,Google Site Search,CH25,206,Software,195.93,,IMD
23-Sep-16,Microsoft,My SQL Database,MD20,206,Software,2.87,,IMD
22-Sep-16,Amazon,Amazon,LN10,500,Equipment,24.98,,One Leisure Huntingdon
22-Sep-16,Amazon,Amazon,LN10,500,Equipment,34.99,,One Leisure Huntingdon
05-Sep-16,T'Lodge ,Refund,HH01,818,BED & BREAKFAST PAYMENT,-339.00,,Housing
07-Sep-16,T'Lodge Fenstanton,PERSONAL DETAILS REDACTED,HH01,818,BED & BREAKFAST PAYMENT,417.00,,Housing
07-Sep-16,T'Lodge Fenstanton,Fee,HH01,818,BED & BREAKFAST PAYMENT,2.00,,Housing
08-Sep-16,T'Lodge Wyboston,PERSONAL DETAILS REDACTED,HH01,818,BED & BREAKFAST PAYMENT,421.00,,Housing
08-Sep-16,T'Lodge Wyboston,Fee,HH01,818,BED & BREAKFAST PAYMENT,2.00,,Housing
08-Sep-16,T'Lodge Fenstanton,PERSONAL DETAILS REDACTED,HH01,818,BED & BREAKFAST PAYMENT,397.00,,Housing
08-Sep-16,T'Lodge Fenstanton,Fee,HH01,818,BED & BREAKFAST PAYMENT,2.00,,Housing
09-Sep-16,T'Lodge Cambridge,PERSONAL DETAILS REDACTED,HH01,818,BED & BREAKFAST PAYMENT,510.00,,Housing
09-Sep-16,T'Lodge Cambridge,Fee,HH01,818,BED & BREAKFAST PAYMENT,2.00,,Housing
09-Sep-16,T'Lodge Swavesey,PERSONAL DETAILS REDACTED,HH01,818,BED & BREAKFAST PAYMENT,333.00,,Housing
09-Sep-16,T'Lodge Swavesey,Fee,HH01,818,BED & BREAKFAST PAYMENT,2.00,,Housing
14-Sep-16,T'Lodge Fenstanton,PERSONAL DETAILS REDACTED,HH01,818,BED & BREAKFAST PAYMENT,83.00,,Housing
14-Sep-16,T'Lodge Fenstanton,Wi-Fi,HH01,818,BED & BREAKFAST PAYMENT,3.00,,Housing
14-Sep-16,T'Lodge Fenstanton,Fee,HH01,818,BED & BREAKFAST PAYMENT,2.00,,Housing
14-Sep-16,T'Lodge Wyboston,PERSONAL DETAILS REDACTED,HH01,818,BED & BREAKFAST PAYMENT,435.00,,Housing
14-Sep-16,T'Lodge Wyboston,Fee,HH01,818,BED & BREAKFAST PAYMENT,2.00,,Housing
14-Sep-16,Accent Nene Ltd,PERSONAL DETAILS REDACTED,HH01,818,BED & BREAKFAST PAYMENT,214.36,,Housing
16-Sep-16,Legal Action Group Ltd,Legal Action Subscription,MU35,250,Books & Publications,199.00,,Housing
19-Sep-16,T'Lodge Fenstanton,PERSONAL DETAILS REDACTED,HH01,818,BED & BREAKFAST PAYMENT,280.00,,Housing
19-Sep-16,T'Lodge Fenstanton,Fee,HH01,818,BED & BREAKFAST PAYMENT,2.00,,Housing
19-Sep-16,T'Lodge Kettering,PERSONAL DETAILS REDACTED,HH01,818,BED & BREAKFAST PAYMENT,41.00,,Housing
19-Sep-16,T'Lodge Kettering,Fee,HH01,818,BED & BREAKFAST PAYMENT,2.00,,Housing
19-Sep-16,T'Lodge Cambridge,PERSONAL DETAILS REDACTED,HH01,818,BED & BREAKFAST PAYMENT,424.50,,Housing
20-Sep-16,T'Lodge Fenstanton,PERSONAL DETAILS REDACTED,HH01,818,BED & BREAKFAST PAYMENT,404.00,,Housing
20-Sep-16,T'Lodge Fenstanton,Fee,HH01,818,BED & BREAKFAST PAYMENT,2.00,,Housing
22-Sep-16,T'Lodge Wyboston,PERSONAL DETAILS REDACTED,HH01,818,BED & BREAKFAST PAYMENT,488.00,,Housing
22-Sep-16,T'Lodge Wyboston,Fee,HH01,818,BED & BREAKFAST PAYMENT,2.00,,Housing
23-Sep-16,T'Lodge Cambridge,PERSONAL DETAILS REDACTED,HH01,818,BED & BREAKFAST PAYMENT,153.00,,Housing
23-Sep-16,T'Lodge Cambridge,Fee,HH01,818,BED & BREAKFAST PAYMENT,2.00,,Housing
28-Sep-16,T'Lodge Wyboston,PERSONAL DETAILS REDACTED,HH01,818,BED & BREAKFAST PAYMENT,407.00,,Housing
28-Sep-16,T'Lodge Wyboston,Fee,HH01,818,BED & BREAKFAST PAYMENT,2.00,,Housing
03-Sep-16,Amazon (Kwik Buy Ltd),Mobile phone case,MD20,240,Telephone &Mobile PhoneCharges,3.99,,IMD
08-Sep-16,Amazon  ,Blaupunkt HD TV,MD20,203,Other IT Hardware,259.99,,IMD
07-Sep-16,Pluralsight,Subscription 6.9.16 - 22.10.16,CH25,206,Software,100.91,,IMD
09-Sep-16,Travelodge,PERSONAL DETAILS REDACTED,MD20,130,Training,605.60,,IMD
09-Sep-16,Amazon,TV Wall Mount Bracket,MD20,203,Other IT Hardware,19.96,,IMD
09-Sep-16,Amazon,Lumia 650 mobile phone case and shipping,MD20,240,Telephone &Mobile PhoneCharges,3.90,,IMD
09-Sep-16,The Knowledge Academy,Six Sigma Training Course,MD20,130,Training,"1,200.00",,IMD
14-Sep-16,Plot-IT,TCS500 Print Heads,MP01,550,MATERIALS,899.89,,IMD
27-Sep-16,GitHub,GitHub.com Subscription ,MD20,206,Software,19.90,,IMD
03-Nov-16,Hotel Chocolate,Chocs for speakers at training day,MU75,710,CATERING,47.25,,Resources
10-Oct-16,Oberon publishing,Book - Clarity and Imapct,MU75,250,Books & Publications,28.30,,Resources
13-Oct-16,Traniline.com,Railfare,LP90,636,TRAVEL EXPENSES,176.97,,One Leisure Huntingdon
17-Oct-16,Stapples UK,Stationary,LP90,225,Stationery,16.58,,One Leisure Huntingdon
19-Oct-16,www.concept2.co.uk,Eqipment,LP90,500,Equipment,14.50,,One Leisure Huntingdon
19-Oct-16,tescos,Eqipment,LP90,500,Equipment,16.10,,One Leisure Huntingdon
20-Oct-16,Post Office,Postage,LP90,231,Postage,44.91,,One Leisure Huntingdon
26-Oct-16,Homebase,Eqipment,LP90,500,Equipment,29.39,,One Leisure Huntingdon
06-Oct-16,GRO HM Passport Office,Legal Fees and Consultancy,MD20,729,Legal fees,23.40,,Local Taxation
06-Oct-16,GRO HM Passport Office,Legal Fees and Consultancy,MD20,729,Legal fees,-23.40,,Local Taxation
14-Oct-16,Acrhant Community Medi,Advertising/Promoting Services,MD20,255,Advertising/Promoting Services,"1,079.99",,Local Taxation
14-Oct-16,Acrhant Community Medi,Advertising/Promoting Services,MD20,255,Advertising/Promoting Services,120.00,,Local Taxation
19-Oct-16,Amazon,Book Lamp and Firesteel fuses,LD20,550,MATERIALS,24.06,,Operations
04-Oct-16,Magnum,MPACT Insole,ER01,163,Protective Clothing and Uniforms,19.98,,Operations
04-Oct-16,QVS,Cable Ties,LQ90,500,Equipment,6.30,,One Leisure St Ives
10-Oct-16,Rajapack,Catalogue Number 305x215x57,LQ90,220,Printing (external),96.00,,One Leisure St Ives
10-Oct-16,Rajapack,Catalogue Number 305x215x58,LP90,220,Printing (external),96.00,,One Leisure St Ives
10-Oct-16,Rajapack,Catalogue Number 305x215x59,LN90,220,Printing (external),96.00,,One Leisure St Ives
10-Oct-16,Rajapack,Catalogue Number 305x215x60,LR90,220,Printing (external),96.00,,One Leisure St Ives
10-Oct-16,Rajapack,Catalogue Number 305x215x61,LS90,220,Printing (external),96.00,,One Leisure St Ives
10-Oct-16,DVLA,Vehicle Tax,ER01,609,VEHICLE LICENCE,652.50,,Operations
10-Oct-16,DVLA,Vehicle Tax,EG06,609,VEHICLE LICENCE,232.50,,Operations
10-Oct-16,DVLA,Vehicle Tax,ER01,609,VEHICLE LICENCE,652.50,,Operations
10-Oct-16,DVLA,Vehicle Tax,MU95,609,VEHICLE LICENCE,232.50,,Operations
10-Oct-16,DVLA,Vehicle Tax,ER01,609,VEHICLE LICENCE,652.50,,Operations
10-Oct-16,DVLA,Vehicle Tax,EG06,609,VEHICLE LICENCE,232.50,,Operations
10-Oct-16,DVLA,Vehicle Tax,ER01,609,VEHICLE LICENCE,167.50,,Operations
10-Oct-16,DVLA,Vehicle Tax,ER01,609,VEHICLE LICENCE,652.50,,Operations
10-Oct-16,DVLA,Vehicle Tax,MU95,609,VEHICLE LICENCE,232.50,,Operations
17-Oct-16,FTA,Defect reporting pad,MU95,500,Equipment,180.00,,Operations
21-Oct-16,Argos,Sat Nav for bin deliveries,ER01,500,Equipment,179.98,,Operations
02-Nov-16,Amazon,Camera & memory cards,EQ02,500,Equipment,146.98,,Operations
04-Oct-16,Survey Monkey,Survey Monkey,LQ90,255,Advertising/Promoting Services,21.67,,One Leisure St Ives
13-Oct-16,Traniline.com,Railfare,LQ90,636,TRAVEL EXPENSES,44.11,,One Leisure St Ives
14-Oct-16,shenzhenshi,Equipment,LQ90,500,Equipment,1.68,,One Leisure St Ives
14-Oct-16,faizi125,Equipment,LQ90,500,Equipment,7.94,,One Leisure St Ives
14-Oct-16,hanshiwan,Equipment,LQ90,500,Equipment,6.96,,One Leisure St Ives
14-Oct-16,johnairdcol,Equipment,LQ90,500,Equipment,2.25,,One Leisure St Ives
14-Oct-16,marcinossow,Equipment,LQ90,500,Equipment,6.75,,One Leisure St Ives
19-Oct-16,facebk,Facebook,LQ90,255,Advertising/Promoting Services,84.03,,One Leisure St Ives
22-Oct-16,old bridge hotel,Accommdation,LQ90,130,Training,293.40,,One Leisure St Ives
25-Oct-16,Amazon UK,Equipment,LQ90,500,Equipment,21.45,,One Leisure St Ives
28-Oct-16,window cleaning stuff,Equipment,LQ90,500,Equipment,44.45,,One Leisure St Ives
28-Oct-16,clubking ltd,Equipment,LQ90,500,Equipment,240.28,,One Leisure St Ives
31-Oct-16,facebk,Facebook,LQ90,255,Advertising/Promoting Services,31.50,,One Leisure St Ives
31-Oct-16,bakerross,Equipment,LQ90,500,Equipment,86.28,,One Leisure St Ives
10-Oct-16,Paypal Bukka,Junior Activity balls,LK20,500,Equipment,165.00,,One Leisure St Ives
31-Oct-16,Terry Heels Bar,Keys,LK90,500,Equipment,12.50,,One Leisure St Ives
10-Oct-16,CIEH,Training - Experience Sharing,MH07,130,Training,20.00,,Community Services
14-Oct-16,PayPal - LocalInform,Training - Political Awareness,MH07,130,Training,239.94,,Community Services
20-Oct-16,Street Works Team,Road Works Licence for CCTV,KC01,359,Sitework,480.00,,Community Services
03-Nov-16,IoA,Training - IoA ERSU-R-97,MH07,130,Training,175.00,,Community Services
23-Oct-16,Microsoft,My SQL database subscription,MD20,206,Software,2.87,,IMD
05-Oct-16,Travelodge,Accommdation for Training,MH07,130,Training,75.95,,Corporate Office
12-Oct-16,Static Safe,Foot Rest PERSONAL DETAILS REDACTED,CH02,500,Equipment,200.40,,Corporate Office
04-Oct-16,Ikea,Equipment,LN90,500,Equipment,40.80,,One Leisure Huntingdon
07-Oct-16,Amazon UK,Equipment,LN90,500,Equipment,23.00,,One Leisure Huntingdon
28-Oct-16,tescos,Equipment,LN90,500,Equipment,57.95,,One Leisure Huntingdon
03-Oct-16,T'Lodge Wyboston,PERSONAL DETAILS REDACTED,HH01,818,BED & BREAKFAST PAYMENT,130.00,,Housing
03-Oct-16,T'Lodge Wyboston,Fee,HH01,818,BED & BREAKFAST PAYMENT,2.00,,Housing
03-Oct-16,Marston Book Ltd,Defending possession proceedings book,MU35,250,Books & Publications,60.00,,Housing
03-Oct-16,T'Lodge Fenstanton,PERSONAL DETAILS REDACTED,HH01,818,BED & BREAKFAST PAYMENT,397.00,,Housing
05-Oct-16,T'Lodge Wyboston,PERSONAL DETAILS REDACTED,HH01,818,BED & BREAKFAST PAYMENT,436.00,,Housing
05-Oct-16,T'Lodge Wyboston,Fee,HH01,818,BED & BREAKFAST PAYMENT,2.00,,Housing
10-Oct-16,T'Lodge Fenstanton,PERSONAL DETAILS REDACTED,HH01,818,BED & BREAKFAST PAYMENT,581.00,,Housing
10-Oct-16,T'Lodge Fenstanton,Fee,HH01,818,BED & BREAKFAST PAYMENT,2.00,,Housing
12-Oct-16,T'Lodge Wyboston,PERSONAL DETAILS REDACTED,HH01,818,BED & BREAKFAST PAYMENT,269.00,,Housing
12-Oct-16,T'Lodge Wyboston,Fee,HH01,818,BED & BREAKFAST PAYMENT,2.00,,Housing
13-Oct-16,Havebury HP,Rent in advance PERSONAL DETAILS REDACTED,HH01,818,BED & BREAKFAST PAYMENT,140.00,,Housing
14-Oct-16,T'Lodge Bedford,PERSONAL DETAILS REDACTED,HH01,818,BED & BREAKFAST PAYMENT,480.00,,Housing
14-Oct-16,T'Lodge Bedford,Fee,HH01,818,BED & BREAKFAST PAYMENT,2.00,,Housing
17-Oct-16,T'Lodge Fenstanton,PERSONAL DETAILS REDACTED,HH01,818,BED & BREAKFAST PAYMENT,473.00,,Housing
17-Oct-16,T'Lodge Fenstanton,Fee,HH01,818,BED & BREAKFAST PAYMENT,2.00,,Housing
17-Oct-16,T'Lodge Wyboston,PERSONAL DETAILS REDACTED,HH01,818,BED & BREAKFAST PAYMENT,48.00,,Housing
17-Oct-16,T'Lodge Wyboston,Fee,HH01,818,BED & BREAKFAST PAYMENT,2.00,,Housing
17-Oct-16,T'Lodge Wyboston,PERSONAL DETAILS REDACTED,HH01,818,BED & BREAKFAST PAYMENT,144.00,,Housing
17-Oct-16,T'Lodge Wyboston,Fee,HH01,818,BED & BREAKFAST PAYMENT,2.00,,Housing
17-Oct-16,Axiom HA,Rent in advance PERSONAL DETAILS REDACTED,HH01,818,BED & BREAKFAST PAYMENT,215.82,,Housing
19-Oct-16,T'Lodge Wyboston,PERSONAL DETAILS REDACTED,HH01,818,BED & BREAKFAST PAYMENT,398.00,,Housing
19-Oct-16,T'Lodge Wyboston,Fee,HH01,818,BED & BREAKFAST PAYMENT,2.00,,Housing
19-Oct-16,BPHA,Rent in advance PERSONAL DETAILS REDACTED,HH01,818,BED & BREAKFAST PAYMENT,83.14,,Housing
20-Oct-16,T'Lodge Bedford,PERSONAL DETAILS REDACTED,HH01,818,BED & BREAKFAST PAYMENT,461.00,,Housing
20-Oct-16,T'Lodge Bedford,Fee,HH01,818,BED & BREAKFAST PAYMENT,2.00,,Housing
26-Oct-16,Reads Removals,Rent in advance PERSONAL DETAILS REDACTED,HH01,818,BED & BREAKFAST PAYMENT,360.00,,Housing
26-Oct-16,Reads Removals,Credit Card surcharge,HH01,818,BED & BREAKFAST PAYMENT,7.20,,Housing
27-Oct-16,T'Lodge Fenstanton,PERSONAL DETAILS REDACTED,HH01,818,BED & BREAKFAST PAYMENT,376.00,,Housing
27-Oct-16,T'Lodge Fenstanton,Fee,HH01,818,BED & BREAKFAST PAYMENT,2.00,,Housing
27-Oct-16,T'Lodge Fenstanton,PERSONAL DETAILS REDACTED,HH01,818,BED & BREAKFAST PAYMENT,376.00,,Housing
27-Oct-16,T'Lodge Fenstanton,Fee,HH01,818,BED & BREAKFAST PAYMENT,2.00,,Housing
27-Oct-16,T'Lodge Fenstanton,Refund PERSONAL DETAILS REDACTED,HH01,818,BED & BREAKFAST PAYMENT,-320.00,,Housing
27-Oct-16,BPHA,Rent in advance PERSONAL DETAILS REDACTED,HH01,818,BED & BREAKFAST PAYMENT,103.73,,Housing
13-Oct-16,1&1 Internet Ltd,3csharedservices.com Domain Name,MD20,206,Software,37.16,,IMD
14-Oct-16,Comodo SSL,SSL Certificate,MD20,206,Software,77.70,,IMD
18-Oct-16,ParcelForce,Collection of TV Screen,MD20,203,Other IT Hardware,31.18,,IMD
27-Oct-16,GitHub,GitHub Subscription,MD20,206,Software,21.19,,IMD
28-Oct-16,Amazon,"Blaupunkt 49"" TV",MD20,203,Other IT Hardware,264.06,,IMD
28-Oct-16,Amazon,Refund of Postage,MD20,203,Other IT Hardware,-4.75,,IMD
28-Oct-16,Amazon,"Refund of Blaupunkt 49"" TV",MD20,203,Other IT Hardware,-264.06,,IMD
03-Nov-16,Capital Stores,Rapesco 2 ring binders (pack of 10),MD20,225,Stationery,18.96,,IMD
06-Oct-16,MIPIM UK,Booking for Olympia London 19-21 Oct,QA03,255,Advertising/Promoting Services,220.00,,Planning
11-Oct-16,DIGI-Quick,Olympius VG-170 Replacement Battery Charger,PD02,500,Equipment,12.99,,Planning
31-Oct-16,No 5 Chambers Ltd,Local Planning Authority Seminar,MH07,130,Training,30.00,,Planning
07-Nov-16,WM Morrison,Chocolates - training event,MU75,130,Training,15.44,,Resources
21-Nov-16,Amazon,Book - Integrated Assurance,MU75,250,Books & Publications,56.80,,Resources
14-Nov-16,lifesavers direct,equipment,LP01,500,Equipment,25.00,,One Leisure Huntingdon
14-Nov-16,RLSS,Membership,LP01,130,Training,42.00,,One Leisure Huntingdon
23-Nov-16,Argos Retail Group,Creche equipment,LP36,500,Equipment,39.98,,One Leisure Huntingdon
23-Nov-16,Fitness superstore,Impressions equipment,LP02,500,Equipment,96.94,,One Leisure Huntingdon
30-Nov-16,Party Delights,Junior Acivities,LP10,500,Equipment,10.94,,One Leisure Huntingdon
30-Nov-16,Hawkin,Junior Acivities,LP10,500,Equipment,16.50,,One Leisure Huntingdon
30-Nov-16,Tesco direct,Junior Acivities,LP10,500,Equipment,28.70,,One Leisure Huntingdon
07-Nov-16,Peterborough CC,Parking to attend Magistrates Court,FC05,729,Legal fees,3.60,,Local Taxation
07-Nov-16,Peterborough CC,Parking to attend Magistrates Court,FC05,729,Legal fees,2.60,,Local Taxation
09-Nov-16,The Works,Books,LD20,A83,ENTERTAINMENTS,81.70,,Operations
10-Nov-16,Amazon,Paper lanterns,LD20,A83,ENTERTAINMENTS,9.70,,Operations
10-Nov-16,Amazon,LED Balloons,LD20,A83,ENTERTAINMENTS,4.94,,Operations
10-Nov-16,Amazon,Icicle Fairy Lights,LD20,A83,ENTERTAINMENTS,50.58,,Operations
10-Nov-16,Amazon,Lanterns,LD20,A83,ENTERTAINMENTS,5.92,,Operations
10-Nov-16,Amazon,Voile net curtain,LD20,A83,ENTERTAINMENTS,30.42,,Operations
03-Nov-16,Comtech Logic via Amazon,Vehicle Trackers,ER01,500,Equipment,449.95,,Operations
06-Nov-16,Expro Products via Amazon,Camera cases,EQ02,500,Equipment,7.94,,Operations
08-Nov-16,DVLA,Vehicle Tax,ER01,609,VEHICLE LICENCE,142.50,,Operations
24-Nov-16,Screwfix,Vehicle wash sprayer,MU95,500,Equipment,19.99,,Operations
04-Nov-16,Survey Monkey,Marketing,LL01,255,Advertising/Promoting Services,21.67,,One Leisure St Ives
11-Nov-16,Amazon,Lift Spray Paint,LQ21,550,MATERIALS,8.95,,One Leisure St Ives
15-Nov-16,HDC,Craft fair Licence,LQ21,730,LICENCES,21.00,,One Leisure St Ives
18-Nov-16,Facebook,Marketing ONE LEISURE,LL01,255,Advertising/Promoting Services,335.93,,One Leisure St Ives
18-Nov-16,Facebook,Marketing ONE LEISURE,LL01,255,Advertising/Promoting Services,69.69,,One Leisure St Ives
27-Nov-16,Facebook,Marketing ONE LEISURE,LL01,255,Advertising/Promoting Services,36.09,,One Leisure St Ives
30-Nov-16,Facebook,Marketing Burgess Events,LL01,255,Advertising/Promoting Services,41.46,,One Leisure St Ives
08-Dec-16,Screwfix,Cableties,LK29,500,Equipment,10.00,,One Leisure St Ives
08-Dec-16,net world,netball nets,LK29,500,Equipment,11.93,,One Leisure St Ives
08-Dec-16,Spar,Catering food,LK20,559,Catering Materials,2.00,,One Leisure St Ives
08-Dec-16,bakeross,creche crafts,LQ90,550,MATERIALS,9.10,,One Leisure St Ives
08-Dec-16,tesco,equipment,LK20,500,Equipment,34.00,,One Leisure St Ives
08-Dec-16,amazon,Padlocks,LQ90,500,Equipment,3.72,,One Leisure St Ives
08-Dec-16,net world,netball nets,LK29,500,Equipment,22.91,,One Leisure St Ives
16-Nov-16,Cambridgeshire CC,Streetworks permit,KC01,511,Equipment Maintenance,226.00,,Community Services
18-Nov-16,Millennium Hotels,PERSONAL DETAILS REDACTED Accommodation for Training,MD20,130,Training,679.80,,IMD
23-Nov-16,AO,9 x Seiki TVs for #Permissions,CH40,203,Other IT Hardware,"2,421.00",,IMD
23-Nov-16,Microsoft,Azure subscription,MD20,206,Software,2.87,,IMD
25-Nov-16,Millennium Hotels,PERSONAL DETAILS REDACTEDAccommodation for Training,MD20,130,Training,669.35,,IMD
15-Nov-16,Enterprise,Car hire costs for training event,MH07,130,Training,53.50,,Corporate Office
16-Nov-16,Stone Court Hotel,Accomm costs for training event,MH07,130,Training,80.00,,Corporate Office
24-Nov-16,Enterprise,Car hire costs for training event,MH07,130,Training,59.50,,Corporate Office
28-Nov-16,Tesco,Fuel,LN90,615,DIESEL,11.28,,One Leisure Huntingdon
28-Nov-16,Tesco,Goods,LN90,500,Equipment,12.00,,One Leisure Huntingdon
30-Nov-16,Amazon,Goods,LN90,500,Equipment,7.87,,One Leisure Huntingdon
30-Nov-16,Amazon,Goods,LN90,500,Equipment,1.59,,One Leisure Huntingdon
30-Nov-16,Amazon,Goods,LN90,500,Equipment,14.52,,One Leisure Huntingdon
30-Nov-16,Tesco,Goods,LN90,500,Equipment,15.00,,One Leisure Huntingdon
30-Nov-16,Amazon,Goods,LN90,500,Equipment,8.79,,One Leisure Huntingdon
30-Nov-16,Amazon,Goods,LN90,500,Equipment,5.44,,One Leisure Huntingdon
30-Nov-16,Amazon,Goods,LN90,500,Equipment,2.00,,One Leisure Huntingdon
03-Nov-16,T'Lodge Fenstanton,PERSONAL DETAILS REDACTED,HH01,818,BED & BREAKFAST PAYMENT,429.00,,Housing
03-Nov-16,T'Lodge Fenstanton,Fee,HH01,818,BED & BREAKFAST PAYMENT,2.00,,Housing
09-Nov-16,T'Lodge,Refund,HH01,818,BED & BREAKFAST PAYMENT,-318.00,,Housing
09-Nov-16,T'Lodge Fenstanton,PERSONAL DETAILS REDACTED,HH01,818,BED & BREAKFAST PAYMENT,71.00,,Housing
09-Nov-16,T'Lodge Fenstanton,Fee,HH01,818,BED & BREAKFAST PAYMENT,2.00,,Housing
10-Nov-16,T'Lodge Fenstanton,PERSONAL DETAILS REDACTED,HH01,818,BED & BREAKFAST PAYMENT,407.00,,Housing
10-Nov-16,T'Lodge Fenstanton,Fee,HH01,818,BED & BREAKFAST PAYMENT,2.00,,Housing
10-Nov-16,T'Lodge Fenstanton,PERSONAL DETAILS REDACTED,HH01,818,BED & BREAKFAST PAYMENT,407.00,,Housing
10-Nov-16,T'Lodge Fenstanton,Fee,HH01,818,BED & BREAKFAST PAYMENT,2.00,,Housing
10-Nov-16,T'Lodge Fenstanton,Refund,HH01,818,BED & BREAKFAST PAYMENT,-407.00,,Housing
17-Nov-16,T'Lodge Fenstanton,PERSONAL DETAILS REDACTED,HH01,818,BED & BREAKFAST PAYMENT,420.00,,Housing
17-Nov-16,T'Lodge Fenstanton,Fee,HH01,818,BED & BREAKFAST PAYMENT,2.00,,Housing
17-Nov-16,T'Lodge Wyboston,PERSONAL DETAILS REDACTED,HH01,818,BED & BREAKFAST PAYMENT,383.00,,Housing
17-Nov-16,T'Lodge Wyboston,Fee,HH01,818,BED & BREAKFAST PAYMENT,2.00,,Housing
18-Nov-16,T'Lodge Alwalton,PERSONAL DETAILS REDACTED,HH01,818,BED & BREAKFAST PAYMENT,133.00,,Housing
18-Nov-16,T'Lodge Alwalton,Fee,HH01,818,BED & BREAKFAST PAYMENT,2.00,,Housing
21-Nov-16,T'Lodge Alwalton,PERSONAL DETAILS REDACTED,HH01,818,BED & BREAKFAST PAYMENT,68.00,,Housing
21-Nov-16,T'Lodge Alwalton,Fee,HH01,818,BED & BREAKFAST PAYMENT,2.00,,Housing
24-Nov-16,T'Lodge Wyboston,PERSONAL DETAILS REDACTED,HH01,818,BED & BREAKFAST PAYMENT,339.00,,Housing
24-Nov-16,T'Lodge Wyboston,Fee,HH01,818,BED & BREAKFAST PAYMENT,2.00,,Housing
25-Nov-16,Axiom HA,Rent in advance PERSONAL DETAILS REDACTED,HH01,818,BED & BREAKFAST PAYMENT,252.92,,Housing
30-Nov-16,T'Lodge Fenstanton,PERSONAL DETAILS REDACTED,HH01,818,BED & BREAKFAST PAYMENT,377.00,,Housing
30-Nov-16,T'Lodge Fenstanton,Fee,HH01,818,BED & BREAKFAST PAYMENT,2.00,,Housing
01-Dec-16,T'Lodge Wyboston,PERSONAL DETAILS REDACTED,HH01,818,BED & BREAKFAST PAYMENT,336.00,,Housing
01-Dec-16,T'Lodge Wyboston,Fee,HH01,818,BED & BREAKFAST PAYMENT,2.00,,Housing
04-Nov-16,Expertees,Uniform for Service Desk staff,MD20,163,Protective Clothing and Uniforms,252.00,,IMD
08-Nov-16,Expertees,Uniform for Service Desk staff,MD20,163,Protective Clothing and Uniforms,253.04,,IMD
11-Nov-16,Oracle Business Solutions,Samsung G357 Galaxy Battery,MD20,240,Telephone &Mobile PhoneCharges,7.98,,IMD
14-Nov-16,1&1 Internet Ltd,Domain Name,MD20,206,Software,37.16,,IMD
16-Nov-16,O2 UK,Phone Repair,MD20,240,Telephone &Mobile PhoneCharges,229.99,,IMD
16-Nov-16,O2 UK,Phone Repair,MD20,240,Telephone &Mobile PhoneCharges,229.99,,IMD
18-Nov-16,The Free Word Centre,Info Commissioner and Tribunal Decisions,MD20,130,Training,220.00,,IMD
18-Nov-16,Travelodge,Hotel stay PERSONAL DETAILS REDACTED,MD20,130,Training,341.80,,IMD
22-Nov-16,Posturite.Co.Uk,Grip Mouse and Postage,MU04,203,Other IT Hardware,62.34,,IMD
22-Nov-16,AO Retail Ltd,Seiki TV in Black PERSONAL DETAILS REDACTED,CH40,203,Other IT Hardware,269.00,,IMD
23-Nov-16,Ganz Einfach,HDMI to HDMI Cables PERSONAL DETAILS REDACTED,CH40,203,Other IT Hardware,83.89,,IMD
23-Nov-16,VictSing,Mini DisplayPort for PERSONAL DETAILS REDACTED,CH40,203,Other IT Hardware,77.90,,IMD
25-Nov-16,Amazon,Micro HDMI to VGA Monitor,MD20,203,Other IT Hardware,10.24,,IMD
27-Nov-16,GitHub.Com,GitHub Subscription,MD20,206,Software,20.73,,IMD
23-Nov-16,Tedy Business SL Perffoios,Euro Transaction,MU16,500,Equipment,381.72,,Planning
23-Dec-16,TSGN,Train tickets - York rtn,MU75,636,TRAVEL EXPENSES,28.10,,Resources
05-Dec-16,The Book people,Childrens Books,LP10,550,MATERIALS,62.71,,One Leisure Huntingdon
07-Dec-16,Tesco,materials for childrens party,LP10,550,MATERIALS,38.50,,One Leisure Huntingdon
22-Dec-16,Dafety Supplys,Safety goggles for Junior Activities,LP10,550,MATERIALS,37.14,,One Leisure Huntingdon
22-Dec-16,tesco,hospitality ,LP20,559,Catering Materials,42.05,,One Leisure Huntingdon
22-Dec-16,The range,materials for childrens party,LS10,550,MATERIALS,28.42,,One Leisure Huntingdon
22-Dec-16,Smyths toys,materials for childrens party,LS10,550,MATERIALS,5.97,,One Leisure Huntingdon
22-Dec-16,smyths toys,materials for childrens party,LS10,550,MATERIALS,3.00,,One Leisure Huntingdon
22-Dec-16,B and M,materials for childrens party,LS10,550,MATERIALS,67.24,,One Leisure Huntingdon
26-Dec-16,Poundstretcher,materials for childrens party,LS10,550,MATERIALS,14.45,,One Leisure Huntingdon
06-Dec-16,DVLA,Vehicle Tax,EQ02,609,VEHICLE LICENCE,652.50,,Operations
06-Dec-16,DVLA,Vehicle Tax,EQ02,609,VEHICLE LICENCE,652.50,,Operations
06-Dec-16,DVLA,Vehicle Tax,EQ02,609,VEHICLE LICENCE,652.50,,Operations
06-Dec-16,DVLA,Vehicle Tax,ER01,609,VEHICLE LICENCE,652.50,,Operations
06-Dec-16,DVLA,Vehicle Tax,ER01,609,VEHICLE LICENCE,652.50,,Operations
06-Dec-16,DVLA,Vehicle Tax,ER01,609,VEHICLE LICENCE,652.50,,Operations
06-Dec-16,DVLA,Vehicle Tax,ER01,609,VEHICLE LICENCE,652.50,,Operations
06-Dec-16,DVLA,Vehicle Tax,ER01,609,VEHICLE LICENCE,652.50,,Operations
06-Dec-16,DVLA,Vehicle Tax,EG06,609,VEHICLE LICENCE,232.50,,Operations
06-Dec-16,DVLA,Vehicle Tax,ES01,609,VEHICLE LICENCE,212.50,,Operations
12-Dec-16,Baker Ross,The Works,LD20,743,PROMOTIONS AND EXHIBITIONS,43.79,,Operations
20-Dec-16,Amazon,Sony SD Memory Cards,ER01,500,Equipment,209.97,,Operations
20-Dec-16,Amazon,Sony SD Memory Cards,ER01,500,Equipment,23.04,,Operations
09-Dec-16,The Works,Childrens books,LD20,743,PROMOTIONS AND EXHIBITIONS,30.00,,Operations
04-Dec-16,Survey Monkey,Marketing,LL01,255,Advertising/Promoting Services,21.67,,One Leisure St Ives
07-Dec-16,Staples,Stationary,LQ21,225,Stationery,263.10,,One Leisure St Ives
07-Dec-16,Facebook,Marketing,LL01,255,Advertising/Promoting Services,462.02,,One Leisure St Ives
07-Dec-16,Facebook,Marketing,LL01,255,Advertising/Promoting Services,103.00,,One Leisure St Ives
07-Dec-16,MAGNIFIERSN,Equipment,LQ21,500,Equipment,13.94,,One Leisure St Ives
20-Dec-16,Screwfix,Equipment,LQ21,500,Equipment,89.99,,One Leisure St Ives
22-Dec-16,Tableau,Software,LQ90,206,Software,336.79,,One Leisure St Ives
22-Dec-16,Tableau,Software,LQ90,206,Software,336.79,,One Leisure St Ives
31-Dec-16,Facebook,Marketing,LL01,255,Advertising/Promoting Services,22.56,,One Leisure St Ives
31-Dec-16,Facebook,Marketing,LL01,255,Advertising/Promoting Services,8.83,,One Leisure St Ives
23-Dec-16,Microsoft,Azure Subscription,MD20,206,Software,2.87,,IMD
03-Dec-16,Amazon,Equipment,LN90,500,Equipment,2.52,,One Leisure Huntingdon
04-Dec-16,T'Lodge Fenstanton,PERSONAL DETAILS REDACTED,HH01,818,BED & BREAKFAST PAYMENT,49.00,,Housing
04-Dec-16,T'Lodge Fenstanton,Fee,HH01,818,BED & BREAKFAST PAYMENT,2.00,,Housing
05-Dec-16,CPAG,Right To Reside flowchart,MU35,250,Books & Publications,7.00,,Housing
06-Dec-16,T'Lodge Wyboston,PERSONAL DETAILS REDACTED,HH01,818,BED & BREAKFAST PAYMENT,366.00,,Housing
06-Dec-16,T'Lodge Wyboston,Fee,HH01,818,BED & BREAKFAST PAYMENT,2.00,,Housing
06-Dec-16,T'Lodge Wyboston,Pet Fee,HH01,818,BED & BREAKFAST PAYMENT,20.00,,Housing
08-Dec-16,T'Lodge Wyboston,PERSONAL DETAILS REDACTED,HH01,818,BED & BREAKFAST PAYMENT,357.00,,Housing
08-Dec-16,T'Lodge Wyboston,Fee,HH01,818,BED & BREAKFAST PAYMENT,2.00,,Housing
09-Dec-16,T'Lodge Wyboston,PERSONAL DETAILS REDACTED,HH01,818,BED & BREAKFAST PAYMENT,380.00,,Housing
09-Dec-16,T'Lodge Wyboston,Fee,HH01,818,BED & BREAKFAST PAYMENT,2.00,,Housing
09-Dec-16,T'Lodge Wyboston,Pet Fee,HH01,818,BED & BREAKFAST PAYMENT,20.00,,Housing
09-Dec-16,T'Lodge Fenstanton,PERSONAL DETAILS REDACTED,HH01,818,BED & BREAKFAST PAYMENT,441.00,,Housing
09-Dec-16,T'Lodge Fenstanton,Fee,HH01,818,BED & BREAKFAST PAYMENT,2.00,,Housing
12-Dec-16,T'Lodge Peterborough,PERSONAL DETAILS REDACTED,HH01,818,BED & BREAKFAST PAYMENT,506.00,,Housing
12-Dec-16,T'Lodge Peterborough,Fee,HH01,818,BED & BREAKFAST PAYMENT,2.00,,Housing
12-Dec-16,T'Lodge Peterborough,Pet Fee,HH01,818,BED & BREAKFAST PAYMENT,20.00,,Housing
12-Dec-16,T'Lodge Peterborough,PERSONAL DETAILS REDACTED,HH01,818,BED & BREAKFAST PAYMENT,474.00,,Housing
12-Dec-16,T'Lodge Peterborough,Fee,HH01,818,BED & BREAKFAST PAYMENT,2.00,,Housing
12-Dec-16,T'Lodge Peterborough,Pet Fee,HH01,818,BED & BREAKFAST PAYMENT,20.00,,Housing
13-Dec-16,T'Lodge ,Refund,HH01,818,BED & BREAKFAST PAYMENT,-402.00,,Housing
16-Dec-16,T'Lodge Fenstanton,PERSONAL DETAILS REDACTED,HH01,818,BED & BREAKFAST PAYMENT,153.00,,Housing
16-Dec-16,T'Lodge Fenstanton,Fee,HH01,818,BED & BREAKFAST PAYMENT,2.00,,Housing
22-Dec-16,Property Line Lettings,PERSONAL DETAILS REDACTED,HH01,818,BED & BREAKFAST PAYMENT,200.00,,Housing
22-Dec-16,Property Line Lettings,PERSONAL DETAILS REDACTED,HH01,818,BED & BREAKFAST PAYMENT,72.00,,Housing
06-Dec-16,Amazon,Nokia Battery for mobile phone,MD20,203,Other IT Hardware,7.93,,IMD
08-Dec-16,Amazon,Duracell 9v Batteries,MD20,203,Other IT Hardware,3.96,,IMD
13-Dec-16,1&1 Internet Ltd,Domain Name,MD20,206,Software,15.72,,IMD
14-Dec-16,Parcel2go,DPD Delivery,MD20,203,Other IT Hardware,38.82,,IMD
22-Dec-16,IRMS,PERSONAL DETAILS REDACTED,MD20,130,Training,456.00,,IMD
27-Dec-16,GitHub,GitHub Subscription,MD20,206,Software,21.03,,IMD
20-Jan-17,CJ Ingle ,Tap,LS90,303,Building Maintenance,312.00,,IMD
31-Jan-17,A1 rent,Van Hire,LS90,607,VEHICLE HIRE,95.00,,One Leisure Huntingdon
31-Jan-17,Tesco,Diesel for van,LS90,619,Vehicle Maintenance External,25.34,,One Leisure Huntingdon
31-Jan-17,Amazon,Equipment for Junior Activities,LP10,500,Equipment,132.91,,One Leisure Huntingdon
31-Jan-17,Amazon,Equipment for Junior Activities,LP10,500,Equipment,24.73,,One Leisure Huntingdon
23-Jan-17,Wernerco,Feet for blue seal stepladder,MB41,303,Building Maintenance,8.50,,One Leisure Huntingdon
30-Jan-17,CIBSE,Membership,MU26,799,OTHER SERVICES,123.00,,Operations
30-Jan-17,BSL,Membership,LD20,799,OTHER SERVICES,354.00,,Operations
05-Jan-17,Screw Fix,New drill,LQ21,500,Equipment,88.99,,Operations
06-Jan-17,Survey Monkey,Marketing,LQ21,255,Advertising/Promoting Services,21.67,,One Leisure St Ives
13-Jan-17,Soccerstore.co,Futsals,LB37,500,Equipment,99.95,,One Leisure St Ives
13-Jan-17,Prokituk.co,Inflatable goals,LN10,500,Equipment,199.98,,One Leisure St Ives
13-Jan-17,Sports Direct.co,Mitts for bubble football parties,LQ10,500,Equipment,58.86,,One Leisure St Ives
18-Jan-17,Screw Fix,Refund from orginal (wrong) drill,LQ21,500,Equipment,-89.99,,One Leisure St Ives
24-Jan-17,Peterborough CCF,ceiling tiles- armstrong sierra,LQ90,303,Building Maintenance,182.47,,One Leisure St Ives
31-Jan-17,Facebook,Marketing,LQ21,255,Advertising/Promoting Services,18.01,,One Leisure St Ives
31-Jan-17,Amazon,Uniform- bar,LQ27,163,Protective Clothing and Uniforms,96.60,,One Leisure St Ives
31-Jan-17,Amazon,Uniform- bar,LQ27,163,Protective Clothing and Uniforms,64.37,,One Leisure St Ives
30-Jan-17,Amazon,Bungee's,LQ90,500,Equipment,21.60,,One Leisure St Ives
31-Jan-17,Timpson LTD,Keys,LQ90,500,Equipment,42.00,,One Leisure St Ives
06-Jan-17,PHE,PERSONAL DETAILS REDACTED,MH07,130,Training,20.00,,One Leisure St Ives
26-Jan-17,LGA,Licensing Conference,CH26,137,Conferences,238.80,,Community Services
23-Jan-17,Microsoft,Azure Subscription MySQL Database,MD20,206,Software,2.87,,Community Services
12-Jan-17,SUMMERFIELD BOOKS,1 X TREE BOOK,MU16,250,Books & Publications,198.25,,IMD
09-Jan-17,Timpson LTD,Keys,LQ90,500,Equipment,40.00,,Planning
27-Jan-17,Enterprise,Vehicle Rental,LQ90,607,VEHICLE HIRE,48.00,,One Leisure Huntingdon
28-Jan-17,Enterprise,Vehicle Rental,LQ90,607,VEHICLE HIRE,200.00,,One Leisure Huntingdon
28-Jan-17,Enterprise,Vehicle Rental,LQ90,607,VEHICLE HIRE,-200.00,,One Leisure Huntingdon
05-Jan-17,T'Lodge P'boro,PERSONAL DETAILS REDACTED,HH01,818,BED & BREAKFAST PAYMENT,423.00,,One Leisure Huntingdon
05-Jan-17,T'Lodge P'boro,Pet fee,HH01,818,BED & BREAKFAST PAYMENT,20.00,,Housing
05-Jan-17,T'Lodge P'boro,Fee,HH01,818,BED & BREAKFAST PAYMENT,2.00,,Housing
06-Jan-17,T'Lodge Fenstanton,PERSONAL DETAILS REDACTED,HH01,818,BED & BREAKFAST PAYMENT,288.00,,Housing
06-Jan-17,T'Lodge Fenstanton,Fee,HH01,818,BED & BREAKFAST PAYMENT,2.00,,Housing
12-Jan-17,T'Lodge P'boro,PERSONAL DETAILS REDACTED,HH01,818,BED & BREAKFAST PAYMENT,145.00,,Housing
12-Jan-17,T'Lodge P'boro,Pet fee,HH01,818,BED & BREAKFAST PAYMENT,20.00,,Housing
12-Jan-17,T'Lodge P'boro,Fee,HH01,818,BED & BREAKFAST PAYMENT,2.00,,Housing
16-Jan-17,T'Lodge P'boro,PERSONAL DETAILS REDACTED,HH01,818,BED & BREAKFAST PAYMENT,451.00,,Housing
16-Jan-17,T'Lodge P'boro,Pet fee,HH01,818,BED & BREAKFAST PAYMENT,20.00,,Housing
16-Jan-17,T'Lodge P'boro,Fee,HH01,818,BED & BREAKFAST PAYMENT,2.00,,Housing
23-Jan-17,T'Lodge Swavesey,PERSONAL DETAILS REDACTED,HH01,818,BED & BREAKFAST PAYMENT,349.00,,Housing
23-Jan-17,T'Lodge Swavesey,Fee,HH01,818,BED & BREAKFAST PAYMENT,2.00,,Housing
26-Jan-17,T'Lodge P'boro,PERSONAL DETAILS REDACTED,HH01,818,BED & BREAKFAST PAYMENT,477.00,,Housing
26-Jan-17,T'Lodge P'boro,Pet fee,HH01,818,BED & BREAKFAST PAYMENT,20.00,,Housing
26-Jan-17,T'Lodge P'boro,Fee,HH01,818,BED & BREAKFAST PAYMENT,2.00,,Housing
30-Jan-17,T'Lodge Swavesey,PERSONAL DETAILS REDACTED,HH01,818,BED & BREAKFAST PAYMENT,415.00,,Housing
30-Jan-17,T'Lodge Swavesey,Fee,HH01,818,BED & BREAKFAST PAYMENT,2.00,,Housing
30-Jan-17,Longhurst Homes,PERSONAL DETAILS REDACTED,HH01,818,BED & BREAKFAST PAYMENT,184.10,,Housing
30-Jan-17,Longhurst Homes,PERSONAL DETAILS REDACTED,HH01,818,BED & BREAKFAST PAYMENT,160.00,,Housing
31-Jan-17,T'Lodge Wyboston,PERSONAL DETAILS REDACTED,HH01,818,BED & BREAKFAST PAYMENT,345.00,,Housing
31-Jan-17,T'Lodge Wyboston,Fee,HH01,818,BED & BREAKFAST PAYMENT,2.00,,Housing
31-Jan-17,T'Lodge Fenstanton,PERSONAL DETAILS REDACTED,HH01,818,BED & BREAKFAST PAYMENT,263.00,,Housing
31-Jan-17,T'Lodge Fenstanton,Fee,HH01,818,BED & BREAKFAST PAYMENT,2.00,,Housing
31-Jan-17,T'Lodge P'boro,PERSONAL DETAILS REDACTED,HH01,818,BED & BREAKFAST PAYMENT,452.00,,Housing
31-Jan-17,T'Lodge P'boro,Pet fee,HH01,818,BED & BREAKFAST PAYMENT,20.00,,Housing
31-Jan-17,T'Lodge P'boro,Fee,HH01,818,BED & BREAKFAST PAYMENT,2.00,,Housing
05-Jan-17,Amazon,Blaupunkt HD LED TV,MD20,203,Other IT Hardware,268.96,,Housing
06-Jan-17,Vertigo Studio,Treasure Chest Software,LL01,206,Software,100.11,,IMD
10-Jan-17,Amazon,TV Brackets,MD20,203,Other IT Hardware,12.99,,IMD
12-Jan-17,Amazon,Amazon Echo Dot,MD20,203,Other IT Hardware,49.99,,IMD
17-Jan-17,Premier Inn,PERSONAL DETAILS REDACTED,MD20,130,Training,186.98,,IMD
26-Jan-17,Amazon,AA Rechargeable Batteries,MD20,203,Other IT Hardware,23.37,,IMD
27-Jan-17,Expertees,Uniform for Service Desk staff,MD20,163,Protective Clothing and Uniforms,110.47,,IMD
27-Jan-17,GitHub,GitHub Subscription,MD20,206,Software,20.57,,IMD
04-Jan-17,Freight Transport Association,Training,CH24,130,Training,180.00,,IMD
09-Jan-17,DVLA,Vehicle Tax,MU95,609,VEHICLE LICENCE,232.50,,Operations
09-Jan-17,DVLA,Vehicle Tax,MU95,609,VEHICLE LICENCE,652.50,,Operations
09-Jan-17,DVLA,Vehicle Tax,MU95,609,VEHICLE LICENCE,232.50,,Operations
09-Jan-17,DVLA,Vehicle Tax,MU95,609,VEHICLE LICENCE,297.50,,Operations
09-Jan-17,DVLA,Vehicle Tax,MU95,609,VEHICLE LICENCE,652.50,,Operations
09-Jan-17,DVLA,Vehicle Tax,MU95,609,VEHICLE LICENCE,232.50,,Operations
12-Jan-17,Amazon,Equipment,CH24,500,Equipment,539.94,,Operations
17-Jan-17,DVLA,Vehicle Tax,MU95,609,VEHICLE LICENCE,232.50,,Operations
05-Jan-17,The Barcode Warehouse,Honeywell Orbit Power Supply & Delivery,LQ27,203,Other IT Hardware,93.36,,Operations
05-Jan-17,Amazon,Duracell AA Batteries 24 Pack & Delivery,MD20,203,Other IT Hardware,16.38,,IMD
16-Jan-17,Amazon,Targus USB Numeric Pad x 5 & Delivery,LQ21,203,Other IT Hardware,46.24,,IMD
19-Jan-17,Posturite,Penguin Ambidextrous Mouse & Delivery,MD20,203,Other IT Hardware,71.94,,IMD
27-Jan-17,SEE Tickets,Data Protection Conference Admission,MD20,130,Training,52.15,,IMD
27-Jan-17,JobServe Ltd,20 Job Credits,MD20,100,Hired Staff,"1,380.00",,IMD
31-Jan-17,Amazon,USB Memory Card Reader x 3,MU16,203,Other IT Hardware,10.44,,IMD
31-Jan-17,Amazon,Microsoft Lumia 650 Case x 3,MD20,203,Other IT Hardware,10.47,,IMD
17-Jan-17,Facebook,Facebook / Instagram Marketing,LL01,255,Advertising/Promoting Services,145.54,,IMD
17-Jan-17,Facebook,Facebook / Instagram Marketing,LL01,255,Advertising/Promoting Services,380.45,,One Leisure Huntingdon
31-Jan-17,Facebook,Facebook / Instagram Marketing,LL01,255,Advertising/Promoting Services,37.86,,One Leisure Huntingdon
31-Jan-17,Facebook,Facebook / Instagram Marketing,LL01,255,Advertising/Promoting Services,314.75,,One Leisure Huntingdon
31-Jan-17,Facebook,Facebook / Instagram Marketing,LL01,255,Advertising/Promoting Services,24.16,,One Leisure Huntingdon
09-Feb-17,Amazon,Equipment,LP10,500,Equipment,115.98,,One Leisure Huntingdon
21-Feb-17,Argos,Equipment,LP10,500,Equipment,159.99,,One Leisure Huntingdon
26-Feb-17,Swimming Org,Equipment,LP10,500,Equipment,299.00,,One Leisure Huntingdon
26-Feb-17,Swimming Org,Equipment,LP10,500,Equipment,299.00,,One Leisure Huntingdon
16-Feb-17,Magnum,Boots,ER01,163,Protective Clothing and Uniforms,84.99,,Operations
17-Feb-17,TV Licensing,TV License,MU26,730,LICENCES,145.50,,Operations
07-Feb-17,Paypal,Bar bottle dispenser,LQ27,550,MATERIALS,2.49,,One Leisure St Ives
07-Feb-17,Survey Monkey,Marketing,LQ21,255,Advertising/Promoting Services,21.67,,One Leisure St Ives
17-Feb-17,Safetyliftgrear,Swimming Pool roof safety gear,LQ01,500,Equipment,148.19,,One Leisure St Ives
21-Feb-17,Amazon,Event Materials,LQ21,550,MATERIALS,5.54,,One Leisure St Ives
22-Feb-17,Tesco,Event Food,LQ27,559,Catering Materials,14.49,,One Leisure St Ives
22-Feb-17,Tesco,Event Food VAT,LQ27,559,Catering Materials,10.80,,One Leisure St Ives
22-Feb-17,Amazon,Event Materials,LQ21,550,MATERIALS,5.85,,One Leisure St Ives
23-Feb-17,Amazon,Power Adaptor,LQ21,550,MATERIALS,19.79,,One Leisure St Ives
27-Feb-17,Amazon,HDMI Cable,LQ21,550,MATERIALS,3.95,,One Leisure St Ives
27-Feb-17,Amazon,Tablet for Events & Promos,LQ21,550,MATERIALS,53.98,,One Leisure St Ives
28-Feb-17,Facebook,Marketing,LQ21,255,Advertising/Promoting Services,83.13,,One Leisure St Ives
28-Feb-17,Morrison,Event Food,LQ27,559,Catering Materials,23.28,,One Leisure St Ives
06-Feb-17,Ransom Spares,Hoover head,LQ90,500,Equipment,11.90,,One Leisure St Ives
10-Feb-17,Screwfix,Spreader,LK90,500,Equipment,94.99,,One Leisure St Ives
16-Feb-17,Terrys hill bar,Keys,LQ90,500,Equipment,16.00,,One Leisure St Ives
21-Feb-17,Microsoft,Azure Subscription MySQL Database,MD20,206,Software,2.87,,IMD
24-Feb-17,Crazy Egg,Website monitoring,MD20,206,Software,89.34,,IMD
06-Feb-17,T'Lodge Swavesey,PERSONAL DETAILS REDACTED,HH01,818,BED & BREAKFAST PAYMENT,388.00,,Housing
06-Feb-17,T'Lodge Swavesey,Fee,HH01,818,BED & BREAKFAST PAYMENT,2.00,,Housing
07-Feb-17,T'Lodge Wyboston,PERSONAL DETAILS REDACTED,HH01,818,BED & BREAKFAST PAYMENT,374.00,,Housing
07-Feb-17,T'Lodge Wyboston,Fee,HH01,818,BED & BREAKFAST PAYMENT,2.00,,Housing
07-Feb-17,T'Lodge Fenstanton,PERSONAL DETAILS REDACTED,HH01,818,BED & BREAKFAST PAYMENT,416.00,,Housing
07-Feb-17,T'Lodge Fenstanton,Fee,HH01,818,BED & BREAKFAST PAYMENT,2.00,,Housing
09-Feb-17,T'Lodge Fenstanton,PERSONAL DETAILS REDACTED,HH01,818,BED & BREAKFAST PAYMENT,272.00,,Housing
09-Feb-17,T'Lodge Fenstanton,Fee,HH01,818,BED & BREAKFAST PAYMENT,2.00,,Housing
10-Feb-17,T'Lodge P'boro,PERSONAL DETAILS REDACTED,HH01,818,BED & BREAKFAST PAYMENT,493.00,,Housing
10-Feb-17,T'Lodge P'boro,Pet fee,HH01,818,BED & BREAKFAST PAYMENT,20.00,,Housing
10-Feb-17,T'Lodge P'boro,Fee,HH01,818,BED & BREAKFAST PAYMENT,2.00,,Housing
13-Feb-17,T'Lodge P'boro,PERSONAL DETAILS REDACTED,HH01,818,BED & BREAKFAST PAYMENT,496.00,,Housing
13-Feb-17,T'Lodge P'boro,Pet fee,HH01,818,BED & BREAKFAST PAYMENT,20.00,,Housing
13-Feb-17,T'Lodge P'boro,Fee,HH01,818,BED & BREAKFAST PAYMENT,2.00,,Housing
13-Feb-17,T'Lodge Swavesey,PERSONAL DETAILS REDACTED,HH01,818,BED & BREAKFAST PAYMENT,375.00,,Housing
13-Feb-17,T'Lodge Swavesey,Fee,HH01,818,BED & BREAKFAST PAYMENT,2.00,,Housing
13-Feb-17,T'Lodge P'boro,Refund,HH01,818,BED & BREAKFAST PAYMENT,-516.00,,Housing
13-Feb-17,BPHA Ltd,PERSONAL DETAILS REDACTED,HH01,816,INCENTIVE PAYMENT,100.87,,Housing
14-Feb-17,T'Lodge Wyboston,PERSONAL DETAILS REDACTED,HH01,818,BED & BREAKFAST PAYMENT,400.00,,Housing
14-Feb-17,T'Lodge Wyboston,Fee,HH01,818,BED & BREAKFAST PAYMENT,2.00,,Housing
14-Feb-17,T'Lodge Fenstanton,PERSONAL DETAILS REDACTED,HH01,818,BED & BREAKFAST PAYMENT,450.00,,Housing
14-Feb-17,T'Lodge Fenstanton,Fee,HH01,818,BED & BREAKFAST PAYMENT,2.00,,Housing
14-Feb-17,T'Lodge Fenstanton,PERSONAL DETAILS REDACTED,HH01,818,BED & BREAKFAST PAYMENT,379.00,,Housing
14-Feb-17,T'Lodge Fenstanton,Fee,HH01,818,BED & BREAKFAST PAYMENT,2.00,,Housing
16-Feb-17,T'Lodge P'boro,PERSONAL DETAILS REDACTED,HH01,818,BED & BREAKFAST PAYMENT,464.00,,Housing
16-Feb-17,T'Lodge P'boro,Pet fee,HH01,818,BED & BREAKFAST PAYMENT,20.00,,Housing
16-Feb-17,T'Lodge P'boro,Fee,HH01,818,BED & BREAKFAST PAYMENT,2.00,,Housing
20-Feb-17,T'Lodge Swavesey,PERSONAL DETAILS REDACTED,HH01,818,BED & BREAKFAST PAYMENT,49.00,,Housing
20-Feb-17,T'Lodge Swavesey,Fee,HH01,818,BED & BREAKFAST PAYMENT,2.00,,Housing
20-Feb-17,T'Lodge Fenstanton,PERSONAL DETAILS REDACTED,HH01,818,BED & BREAKFAST PAYMENT,386.00,,Housing
20-Feb-17,T'Lodge Fenstanton,Fee,HH01,818,BED & BREAKFAST PAYMENT,2.00,,Housing
20-Feb-17,T'Lodge Swavesey,PERSONAL DETAILS REDACTED,HH01,818,BED & BREAKFAST PAYMENT,443.00,,Housing
20-Feb-17,T'Lodge Swavesey,Pet fee,HH01,818,BED & BREAKFAST PAYMENT,40.00,,Housing
20-Feb-17,T'Lodge Swavesey,Fee,HH01,818,BED & BREAKFAST PAYMENT,2.00,,Housing
24-Feb-17,T'Lodge P'boro,PERSONAL DETAILS REDACTED,HH01,818,BED & BREAKFAST PAYMENT,527.00,,Housing
24-Feb-17,T'Lodge P'boro,Pet fee,HH01,818,BED & BREAKFAST PAYMENT,20.00,,Housing
24-Feb-17,T'Lodge P'boro,Fee,HH01,818,BED & BREAKFAST PAYMENT,2.00,,Housing
27-Feb-17,T'Lodge P'boro,PERSONAL DETAILS REDACTED,HH01,818,BED & BREAKFAST PAYMENT,64.00,,Housing
27-Feb-17,T'Lodge P'boro,Fee,HH01,818,BED & BREAKFAST PAYMENT,2.00,,Housing
27-Feb-17,T'Lodge Wyboston,PERSONAL DETAILS REDACTED,HH01,818,BED & BREAKFAST PAYMENT,390.00,,Housing
27-Feb-17,T'Lodge Wyboston,Fee,HH01,818,BED & BREAKFAST PAYMENT,2.00,,Housing
27-Feb-17,T'Lodge Swavesey,PERSONAL DETAILS REDACTED,HH01,818,BED & BREAKFAST PAYMENT,360.00,,Housing
27-Feb-17,T'Lodge Swavesey,Pet fee,HH01,818,BED & BREAKFAST PAYMENT,40.00,,Housing
27-Feb-17,T'Lodge Swavesey,Fee,HH01,818,BED & BREAKFAST PAYMENT,2.00,,Housing
28-Feb-17,T'Lodge Fenstanton,Refund,HH01,818,BED & BREAKFAST PAYMENT,-276.00,,Housing
03-Feb-17,The IT Zone,DesignJet Power Supply,MD20,203,Other IT Hardware,161.88,,IMD
06-Feb-17,Amazon UK,AAA Batteries,MD20,203,Other IT Hardware,11.00,,IMD
07-Feb-17,1&1 Internet Ltd,Domain Name ,MD20,206,Software,28.77,,IMD
13-Feb-17,1&1 Internet Ltd,Domain Name ,MD20,206,Software,44.32,,IMD
22-Feb-17,UPS Ltd,Delivery of Power Supply,MD20,203,Other IT Hardware,10.47,,IMD
23-Feb-17,Galtec,Patchsee Optical Patch Lead Cables,MD20,203,Other IT Hardware,448.50,,IMD
23-Feb-17,UPS Ltd,Delivery of Power Supply,MD20,203,Other IT Hardware,2.00,,IMD
24-Feb-17,Comodo Ltd,SSL Certificates,MD20,206,Software,686.28,,IMD
24-Feb-17,1&1 Internet Ltd,Domain Names x 2,MD20,206,Software,33.56,,IMD
27-Feb-17,GitHub,GitHub Subscription,MD20,206,Software,20.79,,IMD
06-Feb-17,FTA,VC40 Driver Walkaround Pads,MU95,500,Equipment,180.00,,Operations
07-Feb-17,EVAQ8,Workplace Emergency Bags x 2,ER01,500,Equipment,326.40,,Operations
08-Feb-17,DVLA,RFL,ER01,609,VEHICLE LICENCE,652.50,,Operations
08-Feb-17,DVLA,RFL,ER01,609,VEHICLE LICENCE,652.50,,Operations
08-Feb-17,DVLA,RFL,TC90,609,VEHICLE LICENCE,232.50,,Operations
09-Feb-17,DVLA,RFL,EG06,609,VEHICLE LICENCE,167.50,,Operations
09-Feb-17,DVLA,RFL,LB30,609,VEHICLE LICENCE,232.50,,Operations
24-Feb-17,Argos,Monitor Wall Mount for tracking solution,MU95,500,Equipment,54.99,,Operations
27-Feb-17,treesandhedging.co.uk,Spiral Guards,ER01,500,Equipment,185.95,,Operations
20-Feb-17,Google,Google Search site,MD20,206,Software,83.02,,IMD
28-Feb-17,Facebook,Facebook Marketing,LL01,255,Advertising/Promoting Services,49.84,,One Leisure Huntingdon
28-Feb-17,Facebook,Facebook Marketing,LL01,255,Advertising/Promoting Services,1.86,,One Leisure Huntingdon
28-Feb-17,Facebook,Facebook Marketing,LL01,255,Advertising/Promoting Services,201.04,,One Leisure Huntingdon
19-Mar-17,Amazon - 24.78,Book - Lessons on the audit trail,MU75,250,Books & Publications,24.78,,Resources
20-Mar-17,Amazon - 24.13,Book - Auditing that matters,MU75,250,Books & Publications,24.13,,Resources
23-Mar-17,Homebase,Goods,LP90,500,Equipment,16.50,,One Leisure Huntingdon
23-Mar-17,Homebase,Goods,LP90,500,Equipment,11.99,,One Leisure Huntingdon
24-Mar-17,Sports direct,Goods,LP90,500,Equipment,22.99,,One Leisure Huntingdon
06-Mar-17,Marriott,Hotel Room for Artist,LQ21,744,Entertainments inc Cable TV,95.00,,One Leisure St Ives
06-Mar-17,Marriott,Hotel Room for Artist,LQ21,744,Entertainments inc Cable TV,95.00,,One Leisure St Ives
07-Mar-17,Survey Monkey,Marketing,LQ21,255,Advertising/Promoting Services,21.67,,One Leisure St Ives
13-Mar-17,Clubking,Bingo Books,LQ21,550,MATERIALS,255.92,,One Leisure St Ives
13-Mar-17,facebook,Marketing,LQ21,255,Advertising/Promoting Services,84.82,,One Leisure St Ives
13-Mar-17,Hexiaohong,Sticky pad for store,LQ21,550,MATERIALS,2.99,,One Leisure St Ives
13-Mar-17,facebook,Marketing,LQ21,255,Advertising/Promoting Services,84.85,,One Leisure St Ives
14-Mar-17,facebook,Marketing,LQ21,255,Advertising/Promoting Services,85.01,,One Leisure St Ives
15-Mar-17,argos,Fridge and Freezer Admin Kitchen,L116,500,Equipment,339.98,,One Leisure St Ives
17-Mar-17,100ites4u,Clock,LQ21,550,MATERIALS,2.24,,One Leisure St Ives
17-Mar-17,Thehtpermar,Kitchen equipment,LQ27,550,MATERIALS,8.16,,One Leisure St Ives
17-Mar-17,radhettrading,Kitchen equipment,LQ27,550,MATERIALS,2.85,,One Leisure St Ives
27-Mar-17,PERSONAL DETAILS REDACTED,Pillars,LQ21,550,MATERIALS,78.70,,One Leisure St Ives
27-Mar-17,screwfix direct,Health & Safety Helments,LQ21,163,Protective Clothing and Uniforms,12.02,,One Leisure St Ives
27-Mar-17,screwfix direct,Health & Safety Helments,LQ21,163,Protective Clothing and Uniforms,8.94,,One Leisure St Ives
27-Mar-17,amazon,Cables for the committee suite,LQ21,550,MATERIALS,9.58,,One Leisure St Ives
31-Mar-17,rescommunica,Tools Drill,LQ21,511,Equipment Maintenance,49.99,,One Leisure St Ives
31-Mar-17,Tools Direct,Tools Set,LQ21,511,Equipment Maintenance,39.85,,One Leisure St Ives
31-Mar-17,Westend DIY,Key cutting,LQ90,550,MATERIALS,5.75,,One Leisure St Ives
03-Mar-17,Facebook,Marketing,LQ21,255,Advertising/Promoting Services,68.99,,One Leisure St Ives
13-Mar-17,LGIU,LGIU Seminar,MH07,130,Training,239.94,,Community Services
04-Mar-17,Browserstack,Browser testing,MD20,206,Software,354.88,,IMD
28-Mar-17,BemyBear.com,Junior Activity - Build a Bear,LN10,550,MATERIALS,251.16,,One Leisure Huntingdon
03-Mar-17,T'Lodge Peterborough,PERSONAL DETAILS REDACTED,HH01,818,BED & BREAKFAST PAYMENT,513.00,,Housing
03-Mar-17,T'Lodge Peterborough,Pet fee,HH01,818,BED & BREAKFAST PAYMENT,20.00,,Housing
03-Mar-17,T'Lodge Peterborough,Fee,HH01,818,BED & BREAKFAST PAYMENT,2.00,,Housing
03-Mar-17,T'Lodge Wyboston,PERSONAL DETAILS REDACTED,HH01,818,BED & BREAKFAST PAYMENT,213.00,,Housing
03-Mar-17,T'Lodge Wyboston,Fee,HH01,818,BED & BREAKFAST PAYMENT,2.00,,Housing
03-Mar-17,T'Lodge Fenstanton,PERSONAL DETAILS REDACTED,HH01,818,BED & BREAKFAST PAYMENT,389.00,,Housing
03-Mar-17,T'Lodge Fenstanton,Fee,HH01,818,BED & BREAKFAST PAYMENT,2.00,,Housing
03-Mar-17,T'Lodge Fenstanton,PERSONAL DETAILS REDACTED,HH01,818,BED & BREAKFAST PAYMENT,389.00,,Housing
03-Mar-17,T'Lodge Fenstanton,Fee,HH01,818,BED & BREAKFAST PAYMENT,2.00,,Housing
06-Mar-17,T'Lodge Swavesey,PERSONAL DETAILS REDACTED,HH01,818,BED & BREAKFAST PAYMENT,377.00,,Housing
06-Mar-17,T'Lodge Swavesey,Pet fee,HH01,818,BED & BREAKFAST PAYMENT,40.00,,Housing
06-Mar-17,T'Lodge Swavesey,Fee,HH01,818,BED & BREAKFAST PAYMENT,2.00,,Housing
07-Mar-17,T'Lodge Wyboston,PERSONAL DETAILS REDACTED,HH01,818,BED & BREAKFAST PAYMENT,422.00,,Housing
07-Mar-17,T'Lodge Wyboston,Fee,HH01,818,BED & BREAKFAST PAYMENT,2.00,,Housing
07-Mar-17,T'Lodge Wyboston,Refund,HH01,818,BED & BREAKFAST PAYMENT,-201.00,,Housing
08-Mar-17,CPAG,Publication,MU35,250,Books & Publications,41.05,,Housing
08-Mar-17,CPAG,Publication,MU35,250,Books & Publications,23.94,,Housing
10-Mar-17,T'Lodge Peterborough,PERSONAL DETAILS REDACTED,HH01,818,BED & BREAKFAST PAYMENT,518.00,,Housing
10-Mar-17,T'Lodge Peterborough,Pet fee,HH01,818,BED & BREAKFAST PAYMENT,20.00,,Housing
10-Mar-17,T'Lodge Peterborough,Fee,HH01,818,BED & BREAKFAST PAYMENT,2.00,,Housing
10-Mar-17,T'Lodge Fenstanton,PERSONAL DETAILS REDACTED,HH01,818,BED & BREAKFAST PAYMENT,395.00,,Housing
10-Mar-17,T'Lodge Fenstanton,Fee,HH01,818,BED & BREAKFAST PAYMENT,2.00,,Housing
10-Mar-17,T'Lodge Fenstanton,PERSONAL DETAILS REDACTED,HH01,818,BED & BREAKFAST PAYMENT,395.00,,Housing
10-Mar-17,T'Lodge Fenstanton,Fee,HH01,818,BED & BREAKFAST PAYMENT,2.00,,Housing
11-Mar-17,T'Lodge Fenstanton,PERSONAL DETAILS REDACTED,HH01,818,BED & BREAKFAST PAYMENT,104.00,,Housing
11-Mar-17,T'Lodge Fenstanton,Fee,HH01,818,BED & BREAKFAST PAYMENT,2.00,,Housing
13-Mar-17,T'Lodge Swavesey,PERSONAL DETAILS REDACTED,HH01,818,BED & BREAKFAST PAYMENT,49.00,,Housing
13-Mar-17,T'Lodge Swavesey,Pet fee,HH01,818,BED & BREAKFAST PAYMENT,40.00,,Housing
13-Mar-17,T'Lodge Swavesey,Fee,HH01,818,BED & BREAKFAST PAYMENT,2.00,,Housing
14-Mar-17,T'Lodge Wyboston,PERSONAL DETAILS REDACTED,HH01,818,BED & BREAKFAST PAYMENT,391.00,,Housing
14-Mar-17,T'Lodge Wyboston,Fee,HH01,818,BED & BREAKFAST PAYMENT,2.00,,Housing
14-Mar-17,T'Lodge Fenstanton,PERSONAL DETAILS REDACTED,HH01,818,BED & BREAKFAST PAYMENT,400.00,,Housing
14-Mar-17,T'Lodge Fenstanton,Fee,HH01,818,BED & BREAKFAST PAYMENT,2.00,,Housing
14-Mar-17,T'Lodge Wyboston,PERSONAL DETAILS REDACTED,HH01,818,BED & BREAKFAST PAYMENT,66.00,,Housing
14-Mar-17,T'Lodge Wyboston,Fee,HH01,818,BED & BREAKFAST PAYMENT,2.00,,Housing
14-Mar-17,T'Lodge Swavesey,PERSONAL DETAILS REDACTED,HH01,818,BED & BREAKFAST PAYMENT,126.00,,Housing
14-Mar-17,T'Lodge Swavesey,Fee,HH01,818,BED & BREAKFAST PAYMENT,2.00,,Housing
15-Mar-17,T'Lodge Wyboston,PERSONAL DETAILS REDACTED,HH01,818,BED & BREAKFAST PAYMENT,73.00,,Housing
15-Mar-17,T'Lodge Wyboston,Fee,HH01,818,BED & BREAKFAST PAYMENT,2.00,,Housing
16-Mar-17,T'Lodge Swavesey,PERSONAL DETAILS REDACTED,HH01,818,BED & BREAKFAST PAYMENT,202.00,,Housing
16-Mar-17,T'Lodge Swavesey,Fee,HH01,818,BED & BREAKFAST PAYMENT,2.00,,Housing
16-Mar-17,T'Lodge Wyboston,PERSONAL DETAILS REDACTED,HH01,818,BED & BREAKFAST PAYMENT,249.00,,Housing
16-Mar-17,T'Lodge Wyboston,Fee,HH01,818,BED & BREAKFAST PAYMENT,2.00,,Housing
17-Mar-17,T'Lodge Peterborough,PERSONAL DETAILS REDACTED,HH01,818,BED & BREAKFAST PAYMENT,447.00,,Housing
17-Mar-17,T'Lodge Peterborough,Pet fee,HH01,818,BED & BREAKFAST PAYMENT,20.00,,Housing
17-Mar-17,T'Lodge Peterborough,Fee,HH01,818,BED & BREAKFAST PAYMENT,2.00,,Housing
17-Mar-17,T'Lodge Fenstanton,PERSONAL DETAILS REDACTED,HH01,818,BED & BREAKFAST PAYMENT,380.00,,Housing
17-Mar-17,T'Lodge Fenstanton,Fee,HH01,818,BED & BREAKFAST PAYMENT,2.00,,Housing
17-Mar-17,T'Lodge Fenstanton,PERSONAL DETAILS REDACTED,HH01,818,BED & BREAKFAST PAYMENT,380.00,,Housing
17-Mar-17,T'Lodge Fenstanton,Fee,HH01,818,BED & BREAKFAST PAYMENT,2.00,,Housing
17-Mar-17,T'Lodge Wyboston,PERSONAL DETAILS REDACTED,HH01,818,BED & BREAKFAST PAYMENT,397.00,,Housing
17-Mar-17,T'Lodge Wyboston,Fee,HH01,818,BED & BREAKFAST PAYMENT,2.00,,Housing
17-Mar-17,T'Lodge Wyboston,Refund,HH01,818,BED & BREAKFAST PAYMENT,-249.00,,Housing
20-Mar-17,T'Lodge Swavesey,PERSONAL DETAILS REDACTED,HH01,818,BED & BREAKFAST PAYMENT,360.00,,Housing
20-Mar-17,T'Lodge Swavesey,Fee,HH01,818,BED & BREAKFAST PAYMENT,2.00,,Housing
20-Mar-17,T'Lodge Wyboston,PERSONAL DETAILS REDACTED,HH01,818,BED & BREAKFAST PAYMENT,413.00,,Housing
20-Mar-17,T'Lodge Wyboston,Fee,HH01,818,BED & BREAKFAST PAYMENT,2.00,,Housing
21-Mar-17,T'Lodge Swavesey,PERSONAL DETAILS REDACTED,HH01,818,BED & BREAKFAST PAYMENT,380.00,,Housing
21-Mar-17,T'Lodge Swavesey,Fee,HH01,818,BED & BREAKFAST PAYMENT,2.00,,Housing
21-Mar-17,T'Lodge Peterborough,PERSONAL DETAILS REDACTED,HH01,818,BED & BREAKFAST PAYMENT,395.00,,Housing
21-Mar-17,T'Lodge Peterborough,Fee,HH01,818,BED & BREAKFAST PAYMENT,2.00,,Housing
21-Mar-17,T'Lodge Fenstanton,PERSONAL DETAILS REDACTED,HH01,818,BED & BREAKFAST PAYMENT,395.00,,Housing
21-Mar-17,T'Lodge Fenstanton,Fee,HH01,818,BED & BREAKFAST PAYMENT,2.00,,Housing
21-Mar-17,T'Lodge Fenstanton,PERSONAL DETAILS REDACTED,HH01,818,BED & BREAKFAST PAYMENT,380.00,,Housing
21-Mar-17,T'Lodge Fenstanton,Fee,HH01,818,BED & BREAKFAST PAYMENT,2.00,,Housing
21-Mar-17,T'Lodge,Refund,HH01,818,BED & BREAKFAST PAYMENT,-380.00,,Housing
21-Mar-17,T'Lodge Peterborough,Refund,HH01,818,BED & BREAKFAST PAYMENT,-395.00,,Housing
23-Mar-17,T'Lodge Fenstanton,PERSONAL DETAILS REDACTED,HH01,818,BED & BREAKFAST PAYMENT,376.00,,Housing
23-Mar-17,T'Lodge Fenstanton,Fee,HH01,818,BED & BREAKFAST PAYMENT,2.00,,Housing
23-Mar-17,T'Lodge Fenstanton,PERSONAL DETAILS REDACTED,HH01,818,BED & BREAKFAST PAYMENT,376.00,,Housing
23-Mar-17,T'Lodge Fenstanton,Fee,HH01,818,BED & BREAKFAST PAYMENT,2.00,,Housing
23-Mar-17,T'Lodge Peterborough,PERSONAL DETAILS REDACTED,HH01,818,BED & BREAKFAST PAYMENT,439.00,,Housing
23-Mar-17,T'Lodge Peterborough,Fee,HH01,818,BED & BREAKFAST PAYMENT,2.00,,Housing
24-Mar-17,T'Lodge Peterborough,PERSONAL DETAILS REDACTED,HH01,818,BED & BREAKFAST PAYMENT,490.00,,Housing
24-Mar-17,T'Lodge Peterborough,Pet fee,HH01,818,BED & BREAKFAST PAYMENT,20.00,,Housing
24-Mar-17,T'Lodge Peterborough,Fee,HH01,818,BED & BREAKFAST PAYMENT,2.00,,Housing
24-Mar-17,T'Lodge Alwalton,PERSONAL DETAILS REDACTED,HH01,818,BED & BREAKFAST PAYMENT,590.00,,Housing
24-Mar-17,T'Lodge Alwalton,Fee,HH01,818,BED & BREAKFAST PAYMENT,2.00,,Housing
24-Mar-17,T'Lodge ,Refund,HH01,818,BED & BREAKFAST PAYMENT,-326.00,,Housing
27-Mar-17,T'Lodge Wyboston,PERSONAL DETAILS REDACTED,HH01,818,BED & BREAKFAST PAYMENT,409.00,,Housing
27-Mar-17,T'Lodge Wyboston,Fee,HH01,818,BED & BREAKFAST PAYMENT,2.00,,Housing
27-Mar-17,T'Lodge Fenstanton,PERSONAL DETAILS REDACTED,HH01,818,BED & BREAKFAST PAYMENT,424.00,,Housing
27-Mar-17,T'Lodge Fenstanton,Fee,HH01,818,BED & BREAKFAST PAYMENT,2.00,,Housing
28-Mar-17,T'Lodge Fenstanton,PERSONAL DETAILS REDACTED,HH01,818,BED & BREAKFAST PAYMENT,444.00,,Housing
28-Mar-17,T'Lodge Fenstanton,Fee,HH01,818,BED & BREAKFAST PAYMENT,2.00,,Housing
28-Mar-17,T'Lodge Fenstanton,PERSONAL DETAILS REDACTED,HH01,818,BED & BREAKFAST PAYMENT,380.00,,Housing
28-Mar-17,T'Lodge Fenstanton,Fee,HH01,818,BED & BREAKFAST PAYMENT,2.00,,Housing
28-Mar-17,T'Lodge Peterborough,PERSONAL DETAILS REDACTED,HH01,818,BED & BREAKFAST PAYMENT,478.00,,Housing
28-Mar-17,T'Lodge Peterborough,Fee,HH01,818,BED & BREAKFAST PAYMENT,2.00,,Housing
28-Mar-17,T'Lodge Wyboston,PERSONAL DETAILS REDACTED,HH01,818,BED & BREAKFAST PAYMENT,429.00,,Housing
28-Mar-17,T'Lodge Wyboston,Fee,HH01,818,BED & BREAKFAST PAYMENT,2.00,,Housing
28-Mar-17,Premier Inn Peterborough,PERSONAL DETAILS REDACTED,HH01,818,BED & BREAKFAST PAYMENT,495.50,,Housing
28-Mar-17,Premier Inn Peterborough,Fee,HH01,818,BED & BREAKFAST PAYMENT,1.00,,Housing
29-Mar-17,T'Lodge Fenstanton,PERSONAL DETAILS REDACTED,HH01,818,BED & BREAKFAST PAYMENT,413.00,,Housing
29-Mar-17,T'Lodge Fenstanton,Fee,HH01,818,BED & BREAKFAST PAYMENT,2.00,,Housing
30-Mar-17,T'Lodge Peterborough,PERSONAL DETAILS REDACTED,HH01,818,BED & BREAKFAST PAYMENT,460.00,,Housing
30-Mar-17,T'Lodge Peterborough,Fee,HH01,818,BED & BREAKFAST PAYMENT,2.00,,Housing
30-Mar-17,T'Lodge Fenstanton,PERSONAL DETAILS REDACTED,HH01,818,BED & BREAKFAST PAYMENT,404.00,,Housing
30-Mar-17,T'Lodge Fenstanton,Fee,HH01,818,BED & BREAKFAST PAYMENT,2.00,,Housing
30-Mar-17,T'Lodge Peterborough,PERSONAL DETAILS REDACTED,HH01,818,BED & BREAKFAST PAYMENT,476.00,,Housing
30-Mar-17,T'Lodge Peterborough,Pet fee,HH01,818,BED & BREAKFAST PAYMENT,20.00,,Housing
30-Mar-17,T'Lodge Peterborough,Fee,HH01,818,BED & BREAKFAST PAYMENT,2.00,,Housing
30-Mar-17,T'Lodge Peterborough,Refund,HH01,818,BED & BREAKFAST PAYMENT,-496.00,,Housing
31-Mar-17,T'Lodge Wyboston,PERSONAL DETAILS REDACTED,HH01,818,BED & BREAKFAST PAYMENT,427.00,,Housing
31-Mar-17,T'Lodge Wyboston,Fee,HH01,818,BED & BREAKFAST PAYMENT,2.00,,Housing
31-Mar-17,T'Lodge Fenstanton,PERSONAL DETAILS REDACTED,HH01,818,BED & BREAKFAST PAYMENT,441.00,,Housing
31-Mar-17,T'Lodge Fenstanton,Fee,HH01,818,BED & BREAKFAST PAYMENT,2.00,,Housing
05-Mar-17,Amazon,2GB Graphics Card,MU17,203,Other IT Hardware,33.99,,IMD
09-Mar-17,Gala Hotels,PERSONAL DETAILS REDACTED,MD20,130,Training,98.00,,IMD
20-Mar-17,Amazon,Credit for 2GB Graphics Card,MU17,203,Other IT Hardware,-33.99,,IMD
30-Mar-17,GitHub,GitHub Subscription,MD20,206,Software,20.63,,IMD
09-Mar-17,Jessops,Compact Camerain Black,MU16,225,Stationery,198.00,,Planning
08-Mar-17,DVLA,12 Months RFL,TC90,609,VEHICLE LICENCE,232.50,,Operations
08-Mar-17,DVLA,12 Months RFL,ES01,609,VEHICLE LICENCE,232.50,,Operations
08-Mar-17,DVLA,12 Months RFL,EG06,609,VEHICLE LICENCE,232.50,,Operations
08-Mar-17,DVLA,12 Months RFL,TC90,609,VEHICLE LICENCE,232.50,,Operations
08-Mar-17,DVLA,12 Months RFL,TC90,609,VEHICLE LICENCE,232.50,,Operations
14-Mar-17,DVLA,12 Months RFL,DG01,609,VEHICLE LICENCE,232.50,,Operations
14-Mar-17,DVLA,12 Months RFL,ES01,609,VEHICLE LICENCE,232.50,,Operations
12-Mar-17,Microsoft,Microsoft Office 365,MD20,206,Software,100.80,,IMD
15-Mar-17,Comodo,SSL Certificates,MD20,206,Software,377.50,,IMD
17-Mar-17,Cocobolo Software,Batch Patch Standard and Transaction Fee,MD20,206,Software,413.56,,IMD
23-Mar-17,Amazon,SanDisk 16GB USB,MD20,203,Other IT Hardware,6.49,,IMD
27-Mar-17,SurveyMonkey,SurveyMonkey Gold Plan,MD20,206,Software,250.00,,IMD
17-Mar-17,HMV online,Purchase of CD's for One Leisure ALT,LB33,500,Equipment,31.98,,One Leisure Huntingdon
23-Mar-17,Amazon ,Purchase of sports equipment for OLALT,LB33,500,Equipment,74.95,,One Leisure Huntingdon
24-Mar-17,Amazon ,Purchase of sports equipment for OLALT,LB33,500,Equipment,5.97,,One Leisure Huntingdon
24-Mar-17,Amazon ,Purchase of sports equipment for OLALT,LB33,500,Equipment,20.76,,One Leisure Huntingdon
24-Mar-17,Amazon ,Purchase of sports equipment for OLALT,LB33,500,Equipment,79.98,,One Leisure Huntingdon
30-Mar-17,Facebook ,Facebook advertising,LL01,255,Advertising/Promoting Services,179.86,,One Leisure Huntingdon
06-Apr-16,Chiseled,IPOD Touch,LN01,500,Equipment,56.97,,One Leisure Huntingdon
07-Apr-16,Amazon,Waterproof phone case x 6,LN01,500,Equipment,45.93,,One Leisure Huntingdon
07-Apr-16,Chiseled,IPOD Touch,LN01,500,Equipment,52.97,,One Leisure Huntingdon
27-Apr-16,Workshopping,Epoxy putty x 6 tubes,LN90,303,Building Maintenance,46.74,,One Leisure Huntingdon
28-Apr-16,Partsmaster,Splash Cover Frame,LN90,303,Building Maintenance,46.50,,One Leisure Huntingdon
